OrganisationNameLabel,OrganisationURI,EffectiveDate,Directorate/ServiceWhereExpenditureIncurred,ServiceCategoryLabel,ServiceCategoryURI,Supplier,SupplierRegisteredCompany Number,PaymentDate,TransactionNumber,NetAmount,IrrecoverableVAT,PurposeOfSpend,ProcurementClassification:ProclassLabel,ProcrementClassification:ProClassCode
South Lakeland District Council,http://opendatacommunities.org/id/district-council/south-lakeland,30/09/2020,Support Services,Central Services,http://opendatacommunities.org/def/concept/finance/sercop/objective/102,GRANTS- MISCELLANEOUS,,02/09/2020,111540,250,0,Locality donation to provide a,201700,Financial Services Grants
South Lakeland District Council,http://opendatacommunities.org/id/district-council/south-lakeland,30/09/2020,Support Services,Central Services,http://opendatacommunities.org/def/concept/finance/sercop/objective/102,GRANTS- MISCELLANEOUS,,02/09/2020,111562,250,0,Locality donation to fund project to,201700,Financial Services Grants
South Lakeland District Council,http://opendatacommunities.org/id/district-council/south-lakeland,30/09/2020,Support Services,Central Services,http://opendatacommunities.org/def/concept/finance/sercop/objective/102,ULVERSTON TOWN COUNCIL,,14/09/2020,112412,250,0,Locality donation to help purchase new,908000,Public Bodies Council support services
South Lakeland District Council,http://opendatacommunities.org/id/district-council/south-lakeland,30/09/2020,Support Services,Cultural Environmental Regulatory & Planning Services,http://opendatacommunities.org/def/concept/finance/sercop/objective/104,NEWSQUEST MEDIA GROUP LTD,3102566,14/09/2020,112415,250,0,Sponsoring of the Green/Ethical,191000,Facilities Advertising
South Lakeland District Council,http://opendatacommunities.org/id/district-council/south-lakeland,30/09/2020,Support Services,Central Services,http://opendatacommunities.org/def/concept/finance/sercop/objective/102,NEWSQUEST MEDIA GROUP LTD,3102566,14/09/2020,112415,250,0,Sponsoring of the Green/Ethical,191000,Facilities Advertising
,http://opendatacommunities.org/id/district-council/south-lakeland,30/09/2020,Support Services,Central Services,http://opendatacommunities.org/def/concept/finance/sercop/objective/102,GRANTS- MISCELLANEOUS,,23/09/2020,112743,250,0,Locality donation to fund Incredible,201700,Financial Services Grants
South Lakeland District Council,http://opendatacommunities.org/id/district-council/south-lakeland,30/09/2020,Business Support Community Services,Cultural Environmental Regulatory & Planning Services,http://opendatacommunities.org/def/concept/finance/sercop/objective/104,J R RICHARDSON LTD,2225792,14/09/2020,111596,253.1,0,Vehicle washing consumables,381500,Vehicle Mgt Parts
South Lakeland District Council,http://opendatacommunities.org/id/district-council/south-lakeland,30/09/2020,Business Support Community Services,Cultural Environmental Regulatory & Planning Services,http://opendatacommunities.org/def/concept/finance/sercop/objective/104,LANCASHIRE DAF,,16/09/2020,112351,255.78,0,Parts,381400,Vehicle Mgt Maintenance
South Lakeland District Council,http://opendatacommunities.org/id/district-council/south-lakeland,30/09/2020,Business Support Community Services,Cultural Environmental Regulatory & Planning Services,http://opendatacommunities.org/def/concept/finance/sercop/objective/104,BRIAN ARMISTEAD LTD T/A SINKFALL RECYCLI,4133280,02/09/2020,111593,255.88,0,Tipping charges - green waste,391110,Construction Buildings Construction
South Lakeland District Council,http://opendatacommunities.org/id/district-council/south-lakeland,30/09/2020,Kendal Town Hall,External Trading Accounts,,THOMAS GRAHAM & SONS LTD,656879,14/09/2020,111652,259.92,0,10 packs of red bio wipe cloth for,101400,Building General Materials
,http://opendatacommunities.org/id/district-council/south-lakeland,30/09/2020,Social Enterprise Admin,Cultural Environmental Regulatory & Planning Services,http://opendatacommunities.org/def/concept/finance/sercop/objective/104,NEWSQUEST MEDIA GROUP LTD,3102566,23/09/2020,112579,264,0,PUBLIC NOTICES FOR PLANNING 1 APRIL - 31,191000,Facilities Advertising
,http://opendatacommunities.org/id/district-council/south-lakeland,30/09/2020,Business Support Community Services,Cultural Environmental Regulatory & Planning Services,http://opendatacommunities.org/def/concept/finance/sercop/objective/104,DAVID BREAKS,,28/09/2020,112803,264,0,Parts,381500,Vehicle Mgt Parts
South Lakeland District Council,http://opendatacommunities.org/id/district-council/south-lakeland,30/09/2020,Support Services,Central Services,http://opendatacommunities.org/def/concept/finance/sercop/objective/102,THOMSON REUTERS (PROFESSIONAL) UK LTD,1679046,09/09/2020,112211,265,0,Schofields Election Law LL PR R53,202100,Financial Services Subscriptions
,http://opendatacommunities.org/id/district-council/south-lakeland,30/09/2020,Support Services,Central Services,http://opendatacommunities.org/def/concept/finance/sercop/objective/102,CUMBRIA WASTE RECYCLING LTD,3162439,16/09/2020,112505,267.18,0,SLH Wheelie Bin & Skip Emptying,182012,Environment Waste Management Recycling
,http://opendatacommunities.org/id/district-council/south-lakeland,30/09/2020,Business Support Community Services,Cultural Environmental Regulatory & Planning Services,http://opendatacommunities.org/def/concept/finance/sercop/objective/104,GARWOOD EUROPE LTD,4333504,21/09/2020,112516,267.9,0,Parts,182011,Environment Waste Management Consumables
,http://opendatacommunities.org/id/district-council/south-lakeland,30/09/2020,Business Support Community Services,Cultural Environmental Regulatory & Planning Services,http://opendatacommunities.org/def/concept/finance/sercop/objective/104,CUMBRIA WASTE RECYCLING LTD,3162439,23/09/2020,112667,273,0,Skip emptying at Ecclerigg & Ulverston,182012,Environment Waste Management Recycling
,http://opendatacommunities.org/id/district-council/south-lakeland,30/09/2020,Business Support Community Services,Cultural Environmental Regulatory & Planning Services,http://opendatacommunities.org/def/concept/finance/sercop/objective/104,ARCO LIMITED,133804,30/09/2020,112863,280,0,Cleaning materials,141100,Clothing Protective
South Lakeland District Council,http://opendatacommunities.org/id/district-council/south-lakeland,30/09/2020,Support Services,External Trading Accounts,,Ulverston Properties Limited,,09/09/2020,111680,281.67,0,Ulverston Business Centre,190000,Facilities & Management Services
South Lakeland District Council,http://opendatacommunities.org/id/district-council/south-lakeland,30/09/2020,Case Management Account Mgmt,Cultural Environmental Regulatory & Planning Services,http://opendatacommunities.org/def/concept/finance/sercop/objective/104,CONTINENTAL LANDSCAPES LTD,2108452,21/09/2020,111568,282.74,0,Extra works for grounds maintenance,391310,Construction Open Spaces Construction
,http://opendatacommunities.org/id/district-council/south-lakeland,30/09/2020,Customer Services,Central Services,http://opendatacommunities.org/def/concept/finance/sercop/objective/102,SHRED-IT,4047194,16/09/2020,112476,285.49,0,Confidential waste service 2020/21,279999,ICT Not Elsewhere Classified
South Lakeland District Council,http://opendatacommunities.org/id/district-council/south-lakeland,30/09/2020,Business Support Community Services,Central Services,http://opendatacommunities.org/def/concept/finance/sercop/objective/102,CUMBRIA COUNTY COUNCIL,,02/09/2020,109078,288,0,LAND CHARGE SEARCH ENQUIRIES COMMONS,908000,Public Bodies Council support services
South Lakeland District Council,http://opendatacommunities.org/id/district-council/south-lakeland,30/09/2020,Case Management Account Mgmt,Central Services,http://opendatacommunities.org/def/concept/finance/sercop/objective/102,APSE,6735100,14/09/2020,112432,297,0,Project Management in Local Government,202100,Financial Services Subscriptions
South Lakeland District Council,http://opendatacommunities.org/id/district-council/south-lakeland,30/09/2020,Business Support Community Services,Cultural Environmental Regulatory & Planning Services,http://opendatacommunities.org/def/concept/finance/sercop/objective/104,RIBBLESDALE AUTO ELECTRICS 1992 LTD,2732686,07/09/2020,111667,300,0,Parts,381500,Vehicle Mgt Parts
South Lakeland District Council,http://opendatacommunities.org/id/district-council/south-lakeland,30/09/2020,Business Support Community Services,Cultural Environmental Regulatory & Planning Services,http://opendatacommunities.org/def/concept/finance/sercop/objective/104,ARCO LIMITED,133804,03/09/2020,111523,301.51,0,Cleaning materials,141100,Clothing Protective
,http://opendatacommunities.org/id/district-council/south-lakeland,30/09/2020,Customer Services,Central Services,http://opendatacommunities.org/def/concept/finance/sercop/objective/102,SHRED-IT,4047194,16/09/2020,112480,307.46,0,Confidential waste service 2020/21,279999,ICT Not Elsewhere Classified
,http://opendatacommunities.org/id/district-council/south-lakeland,30/09/2020,Assets and Commercial Services,Central Services,http://opendatacommunities.org/def/concept/finance/sercop/objective/102,ADECCO UK LIMITED,593232,23/09/2020,112718,314.79,0,cleaning services,261400,HR Temporary & Agency Staff
,http://opendatacommunities.org/id/district-council/south-lakeland,30/09/2020,Assets and Commercial Services,Central Services,http://opendatacommunities.org/def/concept/finance/sercop/objective/102,ADECCO UK LIMITED,593232,23/09/2020,112719,314.79,0,cleaning services,261400,HR Temporary & Agency Staff
,http://opendatacommunities.org/id/district-council/south-lakeland,30/09/2020,Assets and Commercial Services,Central Services,http://opendatacommunities.org/def/concept/finance/sercop/objective/102,ADECCO UK LIMITED,593232,23/09/2020,112720,314.79,0,cleaning services,261400,HR Temporary & Agency Staff
,http://opendatacommunities.org/id/district-council/south-lakeland,30/09/2020,Assets and Commercial Services,Central Services,http://opendatacommunities.org/def/concept/finance/sercop/objective/102,ADECCO UK LIMITED,593232,23/09/2020,112721,314.79,0,cleaning services,261400,HR Temporary & Agency Staff
,http://opendatacommunities.org/id/district-council/south-lakeland,30/09/2020,Assets and Commercial Services,Central Services,http://opendatacommunities.org/def/concept/finance/sercop/objective/102,ADECCO UK LIMITED,593232,23/09/2020,112722,314.79,0,cleaning services,261400,HR Temporary & Agency Staff
,http://opendatacommunities.org/id/district-council/south-lakeland,30/09/2020,Assets and Commercial Services,Central Services,http://opendatacommunities.org/def/concept/finance/sercop/objective/102,ADECCO UK LIMITED,593232,23/09/2020,112723,314.79,0,cleaning services,261400,HR Temporary & Agency Staff
,http://opendatacommunities.org/id/district-council/south-lakeland,30/09/2020,Assets and Commercial Services,Central Services,http://opendatacommunities.org/def/concept/finance/sercop/objective/102,ADECCO UK LIMITED,593232,23/09/2020,112724,314.79,0,cleaning services,261400,HR Temporary & Agency Staff
,http://opendatacommunities.org/id/district-council/south-lakeland,30/09/2020,Assets and Commercial Services,Central Services,http://opendatacommunities.org/def/concept/finance/sercop/objective/102,ADECCO UK LIMITED,593232,23/09/2020,112725,314.79,0,cleaning services,261400,HR Temporary & Agency Staff
,http://opendatacommunities.org/id/district-council/south-lakeland,30/09/2020,Assets and Commercial Services,Central Services,http://opendatacommunities.org/def/concept/finance/sercop/objective/102,ADECCO UK LIMITED,593232,23/09/2020,112726,314.79,0,cleaning services,261400,HR Temporary & Agency Staff
,http://opendatacommunities.org/id/district-council/south-lakeland,30/09/2020,Assets and Commercial Services,Central Services,http://opendatacommunities.org/def/concept/finance/sercop/objective/102,ADECCO UK LIMITED,593232,30/09/2020,112895,314.79,0,cleaning services,261400,HR Temporary & Agency Staff
,http://opendatacommunities.org/id/district-council/south-lakeland,30/09/2020,Business Support Community Services,Cultural Environmental Regulatory & Planning Services,http://opendatacommunities.org/def/concept/finance/sercop/objective/104,KENDAL SECURITY CENTRE LTD,3179893,28/09/2020,112799,325,0,Keys - Canal Head,192212,Facilities Security Equipment
South Lakeland District Council,http://opendatacommunities.org/id/district-council/south-lakeland,30/09/2020,Business Support Community Services,Cultural Environmental Regulatory & Planning Services,http://opendatacommunities.org/def/concept/finance/sercop/objective/104,FURNESS FLUID POWER LTD,5675728,07/09/2020,111694,327.64,0,Hoses,260000,HR
,http://opendatacommunities.org/id/district-council/south-lakeland,30/09/2020,Business Support Community Services,Cultural Environmental Regulatory & Planning Services,http://opendatacommunities.org/def/concept/finance/sercop/objective/104,DAVID BREAKS,,28/09/2020,112553,330,0,Parts,381500,Vehicle Mgt Parts
South Lakeland District Council,http://opendatacommunities.org/id/district-council/south-lakeland,30/09/2020,Business Support Community Services,Cultural Environmental Regulatory & Planning Services,http://opendatacommunities.org/def/concept/finance/sercop/objective/104,LANCASHIRE DAF,,09/09/2020,112218,331.56,0,Parts,381400,Vehicle Mgt Maintenance
South Lakeland District Council,http://opendatacommunities.org/id/district-council/south-lakeland,30/09/2020,Locality,Central Services,http://opendatacommunities.org/def/concept/finance/sercop/objective/102,ARCO LIMITED,133804,23/09/2020,111416,338.03,0,Essentials Polo Navy L,141100,Clothing Protective
South Lakeland District Council,http://opendatacommunities.org/id/district-council/south-lakeland,30/09/2020,Business Support Community Services,Culture and Related Serv,http://opendatacommunities.org/def/concept/finance/sercop/objective/104,GLASDON UK LTD,2160576,07/09/2020,112245,338.63,0,Glasdon Jubilee� General  Waste Bin in,109999,Building Not Elsewhere Classified
,http://opendatacommunities.org/id/district-council/south-lakeland,30/09/2020,Business Support Community Services,Transport Planning Policy,http://opendatacommunities.org/def/concept/finance/sercop/objective/107,ARCO LIMITED,133804,30/09/2020,112864,339.5,0,Cleaning materials,141100,Clothing Protective
,http://opendatacommunities.org/id/district-council/south-lakeland,30/09/2020,Business Support Community Services,Cultural Environmental Regulatory & Planning Services,http://opendatacommunities.org/def/concept/finance/sercop/objective/104,LANCASHIRE DAF,,23/09/2020,112687,344.3,0,Parts,381400,Vehicle Mgt Maintenance
,http://opendatacommunities.org/id/district-council/south-lakeland,30/09/2020,Business Support Community Services,Cultural Environmental Regulatory & Planning Services,http://opendatacommunities.org/def/concept/finance/sercop/objective/104,DENNIS EAGLE LTD,3794455,30/09/2020,112884,346,0,Parts,381300,Vehicle Mgt Industrial
,http://opendatacommunities.org/id/district-council/south-lakeland,30/09/2020,Case Management Account Mgmt,Cultural Environmental Regulatory & Planning Services,http://opendatacommunities.org/def/concept/finance/sercop/objective/104,Bergen Arbortech,,16/09/2020,112508,346.5,0,Yeats Close - prune tulip tree and,241210,Horticultural Tree Trimming
South Lakeland District Council,http://opendatacommunities.org/id/district-council/south-lakeland,30/09/2020,Business Support Community Services,Cultural Environmental Regulatory & Planning Services,http://opendatacommunities.org/def/concept/finance/sercop/objective/104,GREENCHEM SOLUTIONS LTD,5175801,07/09/2020,111669,350.25,0,AdBlue,189999,Environmental Services Not Elsewhere Cla
South Lakeland District Council,http://opendatacommunities.org/id/district-council/south-lakeland,30/09/2020,Westmorland Centre Parking Office,Highways & Transport Services,http://opendatacommunities.org/def/concept/finance/sercop/objective/107,We Love Logos Ltd,,07/09/2020,111689,351.75,0,Navy polo size M SLDC logo LH side,141100,Clothing Protective
,http://opendatacommunities.org/id/district-council/south-lakeland,30/09/2020,Business Support Community Services,Cultural Environmental Regulatory & Planning Services,http://opendatacommunities.org/def/concept/finance/sercop/objective/104,INNOVATIVE SAFETY SYSTEMS LTD,6875015,28/09/2020,112748,357.5,0,Cameras,192200,Facilities Security
South Lakeland District Council,http://opendatacommunities.org/id/district-council/south-lakeland,30/09/2020,Case Management Regulatory,Central Services,http://opendatacommunities.org/def/concept/finance/sercop/objective/102,ADECCO UK LIMITED,593232,07/09/2020,111645,366.16,0,Agency Staff for Customer & Commercial,261400,HR Temporary & Agency Staff
South Lakeland District Council,http://opendatacommunities.org/id/district-council/south-lakeland,30/09/2020,Case Management Regulatory,Central Services,http://opendatacommunities.org/def/concept/finance/sercop/objective/102,ADECCO UK LIMITED,593232,14/09/2020,112236,370.14,0,Agency Staff for Customer & Commercial,261400,HR Temporary & Agency Staff
,http://opendatacommunities.org/id/district-council/south-lakeland,30/09/2020,Business Support Community Services,Cultural Environmental Regulatory & Planning Services,http://opendatacommunities.org/def/concept/finance/sercop/objective/104,DENNIS EAGLE LTD,3794455,28/09/2020,112800,374.51,0,Parts,381300,Vehicle Mgt Industrial
South Lakeland District Council,http://opendatacommunities.org/id/district-council/south-lakeland,30/09/2020,Case Management Account Mgmt,Highways & Transport Services,http://opendatacommunities.org/def/concept/finance/sercop/objective/107,METRIC GROUP LIMITED,2560839,28/09/2020,112242,381.75,0,Car park machine contract maintenance,359999,Street & Traffic Not Elsewhere Classifie
South Lakeland District Council,http://opendatacommunities.org/id/district-council/south-lakeland,30/09/2020,Case Management Account Mgmt,Highways & Transport Services,http://opendatacommunities.org/def/concept/finance/sercop/objective/107,METRIC GROUP LIMITED,2560839,28/09/2020,112242,381.75,0,Car park machine contract maintenance,359999,Street & Traffic Not Elsewhere Classifie
South Lakeland District Council,http://opendatacommunities.org/id/district-council/south-lakeland,30/09/2020,Case Management Account Mgmt,Highways & Transport Services,http://opendatacommunities.org/def/concept/finance/sercop/objective/107,METRIC GROUP LIMITED,2560839,28/09/2020,112242,381.75,0,Car park machine contract maintenance,359999,Street & Traffic Not Elsewhere Classifie
South Lakeland District Council,http://opendatacommunities.org/id/district-council/south-lakeland,30/09/2020,Support Services,Non-Service Payments,,COMPUTERSHARE VOUCHER SERVICES LTD,4968447,09/09/2020,112261,383,0,Child Care Vouchers 20/21,202100,Financial Services Subscriptions
South Lakeland District Council,http://opendatacommunities.org/id/district-council/south-lakeland,30/09/2020,Business Support Community Services,Central Services,http://opendatacommunities.org/def/concept/finance/sercop/objective/102,CUMBRIA COUNTY COUNCIL,,14/09/2020,111641,384,0,LAND CHARGE SEARCH ENQUIRIES COMMONS,908000,Public Bodies Council support services
,http://opendatacommunities.org/id/district-council/south-lakeland,30/09/2020,Business Support Community Services,Cultural Environmental Regulatory & Planning Services,http://opendatacommunities.org/def/concept/finance/sercop/objective/104,ARCO LIMITED,133804,23/09/2020,112675,384.45,0,Cleaning materials,141100,Clothing Protective
South Lakeland District Council,http://opendatacommunities.org/id/district-council/south-lakeland,30/09/2020,Human Resources,Cultural Environmental Regulatory & Planning Services,http://opendatacommunities.org/def/concept/finance/sercop/objective/104,Health Assured Limited,,09/09/2020,112210,385,0,5 extra counselling session for T,311410,Healthcare-Occupational Therapy services
South Lakeland District Council,http://opendatacommunities.org/id/district-council/south-lakeland,30/09/2020,Case Management Account Mgmt,Cultural Environmental Regulatory & Planning Services,http://opendatacommunities.org/def/concept/finance/sercop/objective/104,GLASDON UK LTD,2160576,03/09/2020,111479,390.49,0,Glasdon Phoenix bench in black for,109999,Building Not Elsewhere Classified
South Lakeland District Council,http://opendatacommunities.org/id/district-council/south-lakeland,30/09/2020,Business Support Community Services,Cultural Environmental Regulatory & Planning Services,http://opendatacommunities.org/def/concept/finance/sercop/objective/104,FAUN ZOELLER (UK) LTD,751804,07/09/2020,112206,391.8,0,Parts & repairs,381400,Vehicle Mgt Maintenance
South Lakeland District Council,http://opendatacommunities.org/id/district-council/south-lakeland,30/09/2020,Case Management Regulatory,Central Services,http://opendatacommunities.org/def/concept/finance/sercop/objective/102,Carrington West,,03/09/2020,111532,392.4,0,PLANNING CONTRACTORS,159999,Consultancy Not Elsewhere Classified
South Lakeland District Council,http://opendatacommunities.org/id/district-council/south-lakeland,30/09/2020,Support Services,Highways & Transport Services,http://opendatacommunities.org/def/concept/finance/sercop/objective/107,NEWSQUEST MEDIA GROUP LTD,3102566,03/09/2020,111518,396,0,notice in Westmorland Gazette relating,191000,Facilities Advertising
South Lakeland District Council,http://opendatacommunities.org/id/district-council/south-lakeland,30/09/2020,Business Support Community Services,Cultural Environmental Regulatory & Planning Services,http://opendatacommunities.org/def/concept/finance/sercop/objective/104,ELIS UK LTD,228604,07/09/2020,111692,398.27,0,Workwear hire 01/04/20 - 31/03/21,161000,Domestic Goods Commercial
South Lakeland District Council,http://opendatacommunities.org/id/district-council/south-lakeland,30/09/2020,Case Management People,Housing Services,http://opendatacommunities.org/def/concept/finance/sercop/objective/108,D Clark Properties,,16/09/2020,112340,400,0,"Accommodation The Lodge, Barrow",250000,Housing
,http://opendatacommunities.org/id/district-council/south-lakeland,30/09/2020,Case Management People,Housing Services,http://opendatacommunities.org/def/concept/finance/sercop/objective/108,D Clark Properties,,21/09/2020,112573,400,0,Accommodation ,250000,Housing
South Lakeland District Council,http://opendatacommunities.org/id/district-council/south-lakeland,30/09/2020,Westmorland Centre Parking Office,Highways & Transport Services,http://opendatacommunities.org/def/concept/finance/sercop/objective/107,KELTIC,8658742,02/09/2020,111287,405.2,0,"mens pilot shirt ss 19"" collar x 4",141000,Clothing Childrens & Adults
South Lakeland District Council,http://opendatacommunities.org/id/district-council/south-lakeland,30/09/2020,Lake Wardens,Cultural Environmental Regulatory & Planning Services,http://opendatacommunities.org/def/concept/finance/sercop/objective/104,Harmony EPOS Solutions Ltd,9266671,09/09/2020,112267,410,0,EPOS Hardware Contract for touch screen,111100,Catering Equipment & Utensils
,http://opendatacommunities.org/id/district-council/south-lakeland,30/09/2020,Case Management People,Housing Services,http://opendatacommunities.org/def/concept/finance/sercop/objective/108,HOME GROUP RENT A/C,,28/09/2020,112861,410.21,0,Rent in advance ,250000,Housing
,http://opendatacommunities.org/id/district-council/south-lakeland,30/09/2020,Support Services,Culture and Related Serv,http://opendatacommunities.org/def/concept/finance/sercop/objective/104,Bushell Cost Consultants Ltd,,16/09/2020,112471,412.5,0,Grange Lido & Promenade Work,151000,Consultancy Business
South Lakeland District Council,http://opendatacommunities.org/id/district-council/south-lakeland,30/09/2020,Case Management,Housing Services,http://opendatacommunities.org/def/concept/finance/sercop/objective/108,Landlord,,02/09/2020,111611,415,0,Monthly rent ,250010,Housing Letting Agents
,http://opendatacommunities.org/id/district-council/south-lakeland,30/09/2020,Lake Wardens,Cultural Environmental Regulatory & Planning Services,http://opendatacommunities.org/def/concept/finance/sercop/objective/104,CUMBRIA WASTE RECYCLING LTD,3162439,16/09/2020,112506,415.85,0,Emptying of Refuse Wheelie Bins (Normal,182012,Environment Waste Management Recycling
,http://opendatacommunities.org/id/district-council/south-lakeland,30/09/2020,Business Support Community Services,Cultural Environmental Regulatory & Planning Services,http://opendatacommunities.org/def/concept/finance/sercop/objective/104,Enevo UK Ltd,9347391,21/09/2020,112523,416,0,Monthly subscriptions 2019/20,261517,ICT-Consultancy
,http://opendatacommunities.org/id/district-council/south-lakeland,30/09/2020,Business Support Community Services,Cultural Environmental Regulatory & Planning Services,http://opendatacommunities.org/def/concept/finance/sercop/objective/104,FURNESS FLUID POWER LTD,5675728,23/09/2020,112666,419.25,0,Parts,260000,HR
South Lakeland District Council,http://opendatacommunities.org/id/district-council/south-lakeland,30/09/2020,Business Support Community Services,Cultural Environmental Regulatory & Planning Services,http://opendatacommunities.org/def/concept/finance/sercop/objective/104,TECHNIJET LTD,2776601,16/09/2020,112345,422.08,0,Service & repair pressure washers,139999,Cleaning & Janitorial Not Elsewhere Clas
South Lakeland District Council,http://opendatacommunities.org/id/district-council/south-lakeland,30/09/2020,Business Support Community Services,Cultural Environmental Regulatory & Planning Services,http://opendatacommunities.org/def/concept/finance/sercop/objective/104,Southfield RCV Services,,09/09/2020,112254,425.98,0,Repairs,380000,Vehicle Management
South Lakeland District Council,http://opendatacommunities.org/id/district-council/south-lakeland,30/09/2020,Business Support Community Services,Central Services,http://opendatacommunities.org/def/concept/finance/sercop/objective/102,CUMBRIA COUNTY COUNCIL,,02/09/2020,110870,432,0,LAND CHARGE SEARCH ENQUIRIES COMMONS,908000,Public Bodies Council support services
,http://opendatacommunities.org/id/district-council/south-lakeland,30/09/2020,Support Services,Central Services,http://opendatacommunities.org/def/concept/finance/sercop/objective/102,ADECCO UK LIMITED,593232,21/09/2020,112486,435.75,0,"Period End: 08/05/20, TS: T002628613,",261400,HR Temporary & Agency Staff
South Lakeland District Council,http://opendatacommunities.org/id/district-council/south-lakeland,30/09/2020,Case Management People,SLDC as Agent,,CIVICA UK LTD,1628868,03/09/2020,111552,442.15,0,Data Storage Barrow Council,271600,ICT Software Customised & Bespoke
South Lakeland District Council,http://opendatacommunities.org/id/district-council/south-lakeland,30/09/2020,Business Support Community Services,Cultural Environmental Regulatory & Planning Services,http://opendatacommunities.org/def/concept/finance/sercop/objective/104,LANCASHIRE DAF,,14/09/2020,111598,444.39,0,Parts,381400,Vehicle Mgt Maintenance
South Lakeland District Council,http://opendatacommunities.org/id/district-council/south-lakeland,30/09/2020,Business Support Community Services,Cultural Environmental Regulatory & Planning Services,http://opendatacommunities.org/def/concept/finance/sercop/objective/104,DENNIS EAGLE LTD,3794455,03/09/2020,111558,448,0,Parts,381300,Vehicle Mgt Industrial
,http://opendatacommunities.org/id/district-council/south-lakeland,30/09/2020,Case Management People,Housing Services,http://opendatacommunities.org/def/concept/finance/sercop/objective/108,Ashberry Recruitment,7202591,30/09/2020,112841,448.34,0,Agency Staff at Town View Fields,261300,HR Recruitment & Assessment
South Lakeland District Council,http://opendatacommunities.org/id/district-council/south-lakeland,30/09/2020,Case Management People,Housing Services,http://opendatacommunities.org/def/concept/finance/sercop/objective/108,Ashberry Recruitment,7202591,09/09/2020,112265,448.44,0,Agency Staff at Town View Fields,261300,HR Recruitment & Assessment
,http://opendatacommunities.org/id/district-council/south-lakeland,30/09/2020,Westmorland Centre Parking Office,Highways & Transport Services,http://opendatacommunities.org/def/concept/finance/sercop/objective/107,Security Plus   Limited,,16/09/2020,112495,450,0,Cash processing August 2020,209999,Financial Services Not Elsewhere Classif
,http://opendatacommunities.org/id/district-council/south-lakeland,30/09/2020,Case Management People,Housing Services,http://opendatacommunities.org/def/concept/finance/sercop/objective/108,Caryn Gough,,30/09/2020,112831,450,0,"Deposit The ColourWorks, Old Shambles",250000,Housing
,http://opendatacommunities.org/id/district-council/south-lakeland,30/09/2020,Case Management People,Housing Services,http://opendatacommunities.org/def/concept/finance/sercop/objective/108,Caryn Gough,,30/09/2020,112831,450,0,"Deposit The ColourWorks, Old Shambles",250000,Housing
,http://opendatacommunities.org/id/district-council/south-lakeland,30/09/2020,Business Support Community Services,Central Services,http://opendatacommunities.org/def/concept/finance/sercop/objective/102,CUMBRIA COUNTY COUNCIL,,28/09/2020,112744,456,0,LAND CHARGE SEARCH ENQUIRIES COMMONS,908000,Public Bodies Council support services
,http://opendatacommunities.org/id/district-council/south-lakeland,30/09/2020,Business Support Community Services,Cultural Environmental Regulatory & Planning Services,http://opendatacommunities.org/def/concept/finance/sercop/objective/104,HAKO MACHINES LIMITED,1414225,30/09/2020,112865,478.97,0,Parts & repairs,131000,Cleaning & Janitorial Cleaning Materials
,http://opendatacommunities.org/id/district-council/south-lakeland,30/09/2020,Business Support Community Services,Cultural Environmental Regulatory & Planning Services,http://opendatacommunities.org/def/concept/finance/sercop/objective/104,ARCO LIMITED,133804,23/09/2020,112697,479.4,0,Cleaning materials,141100,Clothing Protective
,http://opendatacommunities.org/id/district-council/south-lakeland,30/09/2020,Business Support Community Services,Cultural Environmental Regulatory & Planning Services,http://opendatacommunities.org/def/concept/finance/sercop/objective/104,LANCASHIRE DAF,,28/09/2020,112807,482.11,0,Parts,381400,Vehicle Mgt Maintenance
,http://opendatacommunities.org/id/district-council/south-lakeland,30/09/2020,Business Support Community Services,Cultural Environmental Regulatory & Planning Services,http://opendatacommunities.org/def/concept/finance/sercop/objective/104,ARCO LIMITED,133804,23/09/2020,112695,485.71,0,Cleaning materials,141100,Clothing Protective
,http://opendatacommunities.org/id/district-council/south-lakeland,30/09/2020,Business Support Community Services,Cultural Environmental Regulatory & Planning Services,http://opendatacommunities.org/def/concept/finance/sercop/objective/104,ARCO LIMITED,133804,23/09/2020,112678,488.15,0,Cleaning materials,141100,Clothing Protective
South Lakeland District Council,http://opendatacommunities.org/id/district-council/south-lakeland,30/09/2020,Case Management Account Mgmt,Central Services,http://opendatacommunities.org/def/concept/finance/sercop/objective/102,CFH Docmail Ltd,1716891,14/09/2020,112431,495.84,0,SLDC Daily Files June 2020 : Line 1,300000,Mail Services
,http://opendatacommunities.org/id/district-council/south-lakeland,30/09/2020,Business Support Community Services,Cultural Environmental Regulatory & Planning Services,http://opendatacommunities.org/def/concept/finance/sercop/objective/104,LANCASHIRE DAF,,23/09/2020,112689,500,0,Parts,381400,Vehicle Mgt Maintenance
,http://opendatacommunities.org/id/district-council/south-lakeland,30/09/2020,Support Services,Central Services,http://opendatacommunities.org/def/concept/finance/sercop/objective/102,GRANTS- MISCELLANEOUS,,23/09/2020,112742,500,0,Locality donation to fund vegetable,201700,Financial Services Grants
South Lakeland District Council,http://opendatacommunities.org/id/district-council/south-lakeland,30/09/2020,Case Management Account Mgmt,Central Services,http://opendatacommunities.org/def/concept/finance/sercop/objective/102,CFH Docmail Ltd,1716891,09/09/2020,111118,505.17,0,Revenues Printing 2020-21 (Printing,300000,Mail Services
,http://opendatacommunities.org/id/district-council/south-lakeland,30/09/2020,Case Management People,Central Services,http://opendatacommunities.org/def/concept/finance/sercop/objective/102,ADECCO UK LIMITED,593232,16/09/2020,112487,511.19,0,Payment ,261400,HR Temporary & Agency Staff
South Lakeland District Council,http://opendatacommunities.org/id/district-council/south-lakeland,30/09/2020,Case Management People,Central Services,http://opendatacommunities.org/def/concept/finance/sercop/objective/102,ADECCO UK LIMITED,593232,14/09/2020,112237,516.01,0,Payment for Sherrie Ash,261400,HR Temporary & Agency Staff
,http://opendatacommunities.org/id/district-council/south-lakeland,30/09/2020,Support Services,Cultural Environmental Regulatory & Planning Services,http://opendatacommunities.org/def/concept/finance/sercop/objective/104,Lucy Gallagher,,28/09/2020,112797,520,0,Cinema Artwork for Bowness & Windermere,191100,Facilities Design & Photography
,http://opendatacommunities.org/id/district-council/south-lakeland,30/09/2020,Case Management Regulatory,Cultural Environmental Regulatory & Planning Services,http://opendatacommunities.org/def/concept/finance/sercop/objective/104,UNITED UTILITIES WATER PLC,2366678,21/09/2020,112583,521.59,0,Private Water Analysis,371300,Utilities Water
South Lakeland District Council,http://opendatacommunities.org/id/district-council/south-lakeland,30/09/2020,Case Management,Housing Services,http://opendatacommunities.org/def/concept/finance/sercop/objective/108,Landlord,,02/09/2020,111614,536.98,0,Monthly rent,250000,Housing
South Lakeland District Council,http://opendatacommunities.org/id/district-council/south-lakeland,30/09/2020,Case Management Account Mgmt,Central Services,http://opendatacommunities.org/def/concept/finance/sercop/objective/102,The Oyster Partnership,5020374,07/09/2020,111663,544,0,Line 1 w/c 17.08.20 K.K  16 hours@ 34,261300,HR Recruitment & Assessment
South Lakeland District Council,http://opendatacommunities.org/id/district-council/south-lakeland,30/09/2020,Case Management Account Mgmt,Central Services,http://opendatacommunities.org/def/concept/finance/sercop/objective/102,The Oyster Partnership,5020374,07/09/2020,111663,544,0,Line 1 w/c 17.08.20 K.K  16 hours@ 34,261300,HR Recruitment & Assessment
South Lakeland District Council,http://opendatacommunities.org/id/district-council/south-lakeland,30/09/2020,Case Management Account Mgmt,Central Services,http://opendatacommunities.org/def/concept/finance/sercop/objective/102,The Oyster Partnership,5020374,09/09/2020,112234,544,0,Line 1 w/c 24.08.20 (K.K) 16 hours@ 34,261300,HR Recruitment & Assessment
South Lakeland District Council,http://opendatacommunities.org/id/district-council/south-lakeland,30/09/2020,Case Management Account Mgmt,Central Services,http://opendatacommunities.org/def/concept/finance/sercop/objective/102,The Oyster Partnership,5020374,09/09/2020,112234,544,0,Line 1 w/c 24.08.20 (K.K) 16 hours@ 34,261300,HR Recruitment & Assessment
South Lakeland District Council,http://opendatacommunities.org/id/district-council/south-lakeland,30/09/2020,Case Management People,SLDC as Agent,,CIVICA UK LTD,1628868,03/09/2020,111542,547.27,0,Data Storage Barrow Council,271600,ICT Software Customised & Bespoke
South Lakeland District Council,http://opendatacommunities.org/id/district-council/south-lakeland,30/09/2020,Support Services,Culture and Related Serv,http://opendatacommunities.org/def/concept/finance/sercop/objective/104,Bushell Cost Consultants Ltd,,16/09/2020,112466,550,0,Grange Lido & Promenade Work,151000,Consultancy Business
South Lakeland District Council,http://opendatacommunities.org/id/district-council/south-lakeland,30/09/2020,Case Management Regulatory,Central Services,http://opendatacommunities.org/def/concept/finance/sercop/objective/102,The Oyster Partnership,5020374,14/09/2020,112417,553.2,0,Agency Environmental Health Officer,261300,HR Recruitment & Assessment
South Lakeland District Council,http://opendatacommunities.org/id/district-council/south-lakeland,30/09/2020,Case Management People,Housing Services,http://opendatacommunities.org/def/concept/finance/sercop/objective/108,HOME GROUP RENT A/C,,14/09/2020,112459,555.17,0,Rent in advance ,250000,Housing
South Lakeland District Council,http://opendatacommunities.org/id/district-council/south-lakeland,30/09/2020,Business Support Community Services,Cultural Environmental Regulatory & Planning Services,http://opendatacommunities.org/def/concept/finance/sercop/objective/104,LANCASHIRE DAF,,07/09/2020,111666,560,0,Parts,381400,Vehicle Mgt Maintenance
,http://opendatacommunities.org/id/district-council/south-lakeland,30/09/2020,Business Support Community Services,Cultural Environmental Regulatory & Planning Services,http://opendatacommunities.org/def/concept/finance/sercop/objective/104,DAVID BREAKS,,30/09/2020,112870,560,0,Repairs,381500,Vehicle Mgt Parts
South Lakeland District Council,http://opendatacommunities.org/id/district-council/south-lakeland,30/09/2020,Case Management Account Mgmt,Central Services,http://opendatacommunities.org/def/concept/finance/sercop/objective/102,PITNEY BOWES LTD,182037,14/09/2020,112243,562.5,0,2020-21 Stock Envelopes,301200,Mail Services� Postage
,http://opendatacommunities.org/id/district-council/south-lakeland,30/09/2020,Business Support Community Services,Cultural Environmental Regulatory & Planning Services,http://opendatacommunities.org/def/concept/finance/sercop/objective/104,ETS UK LIMITED,2588203,28/09/2020,112802,565,0,Filters,381500,Vehicle Mgt Parts
,http://opendatacommunities.org/id/district-council/south-lakeland,30/09/2020,Business Support Community Services,Cultural Environmental Regulatory & Planning Services,http://opendatacommunities.org/def/concept/finance/sercop/objective/104,K S INTERNATIONAL LTD,2703321,28/09/2020,112617,580,0,Parts,381500,Vehicle Mgt Parts
South Lakeland District Council,http://opendatacommunities.org/id/district-council/south-lakeland,30/09/2020,Case Management Regulatory,Central Services,http://opendatacommunities.org/def/concept/finance/sercop/objective/102,Enterprise Flex-E Rent,,16/09/2020,112339,581.25,0,Refrigerated Van Hire for Private Water,381210,Vehicle Mangement- Hire
,http://opendatacommunities.org/id/district-council/south-lakeland,30/09/2020,Business Support Community Services,Cultural Environmental Regulatory & Planning Services,http://opendatacommunities.org/def/concept/finance/sercop/objective/104,LANCASHIRE DAF,,23/09/2020,112683,581.87,0,Parts,381400,Vehicle Mgt Maintenance
,http://opendatacommunities.org/id/district-council/south-lakeland,30/09/2020,Business Support Community Services,Cultural Environmental Regulatory & Planning Services,http://opendatacommunities.org/def/concept/finance/sercop/objective/104,HAKO MACHINES LIMITED,1414225,30/09/2020,112858,587.5,0,Parts & repairs,131000,Cleaning & Janitorial Cleaning Materials
South Lakeland District Council,http://opendatacommunities.org/id/district-council/south-lakeland,30/09/2020,Support Services,Central Services,http://opendatacommunities.org/def/concept/finance/sercop/objective/102,R G PARKINS & PARTNERS LTD,4107150,16/09/2020,112458,594.7,0,"Broadgate Meadows, Grasmere",152200,Consultancy Technical & Feasibility
South Lakeland District Council,http://opendatacommunities.org/id/district-council/south-lakeland,30/09/2020,Case Management People,Central Services,http://opendatacommunities.org/def/concept/finance/sercop/objective/102,ADECCO UK LIMITED,593232,03/09/2020,111644,607.64,0,Payment ,261400,HR Temporary & Agency Staff
South Lakeland District Council,http://opendatacommunities.org/id/district-council/south-lakeland,30/09/2020,Support Services,Other Items,,Tactical Security,,03/09/2020,111529,630,0,Provision of Security Services,192200,Facilities Security
South Lakeland District Council,http://opendatacommunities.org/id/district-council/south-lakeland,30/09/2020,Support Services,Other Items,,Tactical Security,,03/09/2020,111530,630,0,Provision of Security Services,192200,Facilities Security
South Lakeland District Council,http://opendatacommunities.org/id/district-council/south-lakeland,30/09/2020,Support Services,Other Items,,Tactical Security,,14/09/2020,112359,630,0,Provision of Security Services,192200,Facilities Security
,http://opendatacommunities.org/id/district-council/south-lakeland,30/09/2020,Support Services,Other Items,,Tactical Security,,30/09/2020,112620,630,0,Provision of Security Services,192200,Facilities Security
,http://opendatacommunities.org/id/district-council/south-lakeland,30/09/2020,Business Support Community Services,Cultural Environmental Regulatory & Planning Services,http://opendatacommunities.org/def/concept/finance/sercop/objective/104,Romaquip UK,,30/09/2020,112844,636.65,0,Locks,381000,Vehicle Mgt Commercial
South Lakeland District Council,http://opendatacommunities.org/id/district-council/south-lakeland,30/09/2020,Support Services,Central Services,http://opendatacommunities.org/def/concept/finance/sercop/objective/102,BEVAN BRITTAN,OC309219,03/09/2020,111513,644.4,0,Professional charges for the period 14,280000,Legal Services
,http://opendatacommunities.org/id/district-council/south-lakeland,30/09/2020,Business Support Community Services,Cultural Environmental Regulatory & Planning Services,http://opendatacommunities.org/def/concept/finance/sercop/objective/104,FAUN ZOELLER (UK) LTD,751804,21/09/2020,112517,644.78,0,Parts & repairs,381400,Vehicle Mgt Maintenance
,http://opendatacommunities.org/id/district-council/south-lakeland,30/09/2020,Case Management People,Central Services,http://opendatacommunities.org/def/concept/finance/sercop/objective/102,ADECCO UK LIMITED,593232,23/09/2020,112727,646.22,0,Payment ,261400,HR Temporary & Agency Staff
,http://opendatacommunities.org/id/district-council/south-lakeland,30/09/2020,ICT Group,Central Services,http://opendatacommunities.org/def/concept/finance/sercop/objective/102,DAISY COMMUNICATIONS LTD,4145329,30/09/2020,112888,649.87,0,"Daisy Line Rentel costs, covers 1/4/20",271700,ICT Telecommunications Fixed
,http://opendatacommunities.org/id/district-council/south-lakeland,30/09/2020,Business Support Community Services,SLDC as Agent,,Pied Piper Northern Ltd,4220926,28/09/2020,112643,650,0,Carrying out rat treatment at 10-16,181500,Environment Animal Services
South Lakeland District Council,http://opendatacommunities.org/id/district-council/south-lakeland,30/09/2020,Business Support Community Services,Cultural Environmental Regulatory & Planning Services,http://opendatacommunities.org/def/concept/finance/sercop/objective/104,GARWOOD EUROPE LTD,4333504,03/09/2020,111502,653,0,Parts,182011,Environment Waste Management Consumables
South Lakeland District Council,http://opendatacommunities.org/id/district-council/south-lakeland,30/09/2020,Support Services,Central Services,http://opendatacommunities.org/def/concept/finance/sercop/objective/102,St John's Chambers,,16/09/2020,112341,660,0,"external legal fees, counsel's advice",281200,Legal Services General Support
South Lakeland District Council,http://opendatacommunities.org/id/district-council/south-lakeland,30/09/2020,Business Support Community Services,Cultural Environmental Regulatory & Planning Services,http://opendatacommunities.org/def/concept/finance/sercop/objective/104,DENNIS EAGLE LTD,3794455,14/09/2020,111661,661.08,0,Parts,381300,Vehicle Mgt Industrial
South Lakeland District Council,http://opendatacommunities.org/id/district-council/south-lakeland,30/09/2020,Development Implementation,Central Services,http://opendatacommunities.org/def/concept/finance/sercop/objective/102,J S Cleaning Services,,16/09/2020,112457,672,0,Cleaner for SLDC - April 2019 Onwards,131010,Cleaning & Janitorial Cleaning Materials
,http://opendatacommunities.org/id/district-council/south-lakeland,30/09/2020,Case Management Account Mgmt,Central Services,http://opendatacommunities.org/def/concept/finance/sercop/objective/102,The Oyster Partnership,5020374,23/09/2020,112728,680,0,Line 1 w/c 07.09.20 (K.K)  20 hours@,261300,HR Recruitment & Assessment
,http://opendatacommunities.org/id/district-council/south-lakeland,30/09/2020,Case Management Account Mgmt,Central Services,http://opendatacommunities.org/def/concept/finance/sercop/objective/102,The Oyster Partnership,5020374,23/09/2020,112728,680,0,Line 1 w/c 07.09.20 (K.K)  20 hours@,261300,HR Recruitment & Assessment
,http://opendatacommunities.org/id/district-council/south-lakeland,30/09/2020,Policy & Partnerships,Central Services,http://opendatacommunities.org/def/concept/finance/sercop/objective/102,PDP COMPANIES,3893956,23/09/2020,112740,695,0,Data Protection Compliance Conference,261500,HR Training & Conferences
South Lakeland District Council,http://opendatacommunities.org/id/district-council/south-lakeland,30/09/2020,Business Support Community Services,Cultural Environmental Regulatory & Planning Services,http://opendatacommunities.org/def/concept/finance/sercop/objective/104,GARWOOD EUROPE LTD,4333504,07/09/2020,111590,713,0,Parts,182011,Environment Waste Management Consumables
South Lakeland District Council,http://opendatacommunities.org/id/district-council/south-lakeland,30/09/2020,Business Support Community Services,Cultural Environmental Regulatory & Planning Services,http://opendatacommunities.org/def/concept/finance/sercop/objective/104,Harry Park Tyres Ltd,8131208,16/09/2020,112353,717.5,0,Tyres,381500,Vehicle Mgt Parts
South Lakeland District Council,http://opendatacommunities.org/id/district-council/south-lakeland,30/09/2020,Business Support Community Services,Cultural Environmental Regulatory & Planning Services,http://opendatacommunities.org/def/concept/finance/sercop/objective/104,Southfield RCV Services,,07/09/2020,112250,720,0,Repairs,380000,Vehicle Management
South Lakeland District Council,http://opendatacommunities.org/id/district-council/south-lakeland,30/09/2020,Case Management Account Mgmt,Central Services,http://opendatacommunities.org/def/concept/finance/sercop/objective/102,CFH Docmail Ltd,1716891,09/09/2020,111118,739.81,0,Revenues Printing 2020-21 (Printing,300000,Mail Services
South Lakeland District Council,http://opendatacommunities.org/id/district-council/south-lakeland,30/09/2020,Case Management Regulatory,SLDC as Agent,,CUMBRIA COUNTY COUNCIL,,21/09/2020,111053,756,0,DBS checks for taxi drivers 20/21,908000,Public Bodies Council support services
South Lakeland District Council,http://opendatacommunities.org/id/district-council/south-lakeland,30/09/2020,Case Management Account Mgmt,Central Services,http://opendatacommunities.org/def/concept/finance/sercop/objective/102,CFH Docmail Ltd,1716891,14/09/2020,112431,773.14,0,SLDC Daily Files June 2020 : Line 1,300000,Mail Services
,http://opendatacommunities.org/id/district-council/south-lakeland,30/09/2020,Support Services,Central Services,http://opendatacommunities.org/def/concept/finance/sercop/objective/102,ADECCO UK LIMITED,593232,30/09/2020,112896,776.22,0,"Period End: 08/05/20, TS: T002628613,",261400,HR Temporary & Agency Staff
South Lakeland District Council,http://opendatacommunities.org/id/district-council/south-lakeland,30/09/2020,Case Management Regulatory,Cultural Environmental Regulatory & Planning Services,http://opendatacommunities.org/def/concept/finance/sercop/objective/104,CASTLESTEADS LTD,,09/09/2020,112343,780,0,Taxi Medicals (Invoice 9086),311600,Healthcare Services
South Lakeland District Council,http://opendatacommunities.org/id/district-council/south-lakeland,30/09/2020,Support Services,Culture and Related Serv,http://opendatacommunities.org/def/concept/finance/sercop/objective/104,WYG Management Services Ltd,4807864,03/09/2020,111569,790,0,Grange Lido Asbestos Survey,182012,Environment Waste Management Recycling
South Lakeland District Council,http://opendatacommunities.org/id/district-council/south-lakeland,30/09/2020,Case Management Regulatory,Central Services,http://opendatacommunities.org/def/concept/finance/sercop/objective/102,The Oyster Partnership,5020374,09/09/2020,112220,792,0,Agency Environmental Health Officer,261300,HR Recruitment & Assessment
South Lakeland District Council,http://opendatacommunities.org/id/district-council/south-lakeland,30/09/2020,Support Services,Central Services,http://opendatacommunities.org/def/concept/finance/sercop/objective/102,GRANTS- MISCELLANEOUS,,14/09/2020,112414,800,0,Locality donation to fund the purchase,201700,Financial Services Grants
,http://opendatacommunities.org/id/district-council/south-lakeland,30/09/2020,Case Management Account Mgmt,Central Services,http://opendatacommunities.org/def/concept/finance/sercop/objective/102,CFH Docmail Ltd,1716891,21/09/2020,112578,813.76,0,Revenues Printing 2020-21 (Printing,300000,Mail Services
South Lakeland District Council,http://opendatacommunities.org/id/district-council/south-lakeland,30/09/2020,Case Management,Housing Services,http://opendatacommunities.org/def/concept/finance/sercop/objective/108,Landlord,,14/09/2020,112442,839.88,0,Monthly rent,250000,Housing
South Lakeland District Council,http://opendatacommunities.org/id/district-council/south-lakeland,30/09/2020,Case Management Regulatory,Central Services,http://opendatacommunities.org/def/concept/finance/sercop/objective/102,The Oyster Partnership,5020374,03/09/2020,111587,850.05,0,Agency Environmental Health Officer,261300,HR Recruitment & Assessment
,http://opendatacommunities.org/id/district-council/south-lakeland,30/09/2020,Business Support Community Services,Cultural Environmental Regulatory & Planning Services,http://opendatacommunities.org/def/concept/finance/sercop/objective/104,LANCASHIRE DAF,,30/09/2020,112878,855,0,Parts,381400,Vehicle Mgt Maintenance
South Lakeland District Council,http://opendatacommunities.org/id/district-council/south-lakeland,30/09/2020,Locality,Cultural Environmental Regulatory & Planning Services,http://opendatacommunities.org/def/concept/finance/sercop/objective/104,GLASDON UK LTD,2160576,21/09/2020,111480,871.04,0,1 x stanford seat,109999,Building Not Elsewhere Classified
South Lakeland District Council,http://opendatacommunities.org/id/district-council/south-lakeland,30/09/2020,Case Management People,SLDC as Agent,,CIVICA UK LTD,1628868,03/09/2020,111541,893.57,0,Data Storage Barrow Council,271600,ICT Software Customised & Bespoke
,http://opendatacommunities.org/id/district-council/south-lakeland,30/09/2020,Support Services,Central Services,http://opendatacommunities.org/def/concept/finance/sercop/objective/102,ADECCO UK LIMITED,593232,16/09/2020,112485,900.55,0,"Period End: 08/05/20, TS: T002628613,",261400,HR Temporary & Agency Staff
,http://opendatacommunities.org/id/district-council/south-lakeland,30/09/2020,Support Services,Central Services,http://opendatacommunities.org/def/concept/finance/sercop/objective/102,ADECCO UK LIMITED,593232,30/09/2020,112894,907.81,0,"Period End: 08/05/20, TS: T002628613,",261400,HR Temporary & Agency Staff
South Lakeland District Council,http://opendatacommunities.org/id/district-council/south-lakeland,30/09/2020,Case Management,Housing Services,http://opendatacommunities.org/def/concept/finance/sercop/objective/108,GROWING CONCERNS LTD,,03/09/2020,111581,936,0,Growing Concerns Payment for invoices,391200,Construction Engineering
,http://opendatacommunities.org/id/district-council/south-lakeland,30/09/2020,ICT Group,Central Services,http://opendatacommunities.org/def/concept/finance/sercop/objective/102,Insight Direct (Uk) Ltd,2579852,23/09/2020,112713,936.4,0,Poly Blackwire C3225 - headset,271200,ICT Hardware
South Lakeland District Council,http://opendatacommunities.org/id/district-council/south-lakeland,30/09/2020,Support Services,Central Services,http://opendatacommunities.org/def/concept/finance/sercop/objective/102,ADECCO UK LIMITED,593232,14/09/2020,111643,944.13,0,"Period End: 08/05/20, TS: T002628613,",261400,HR Temporary & Agency Staff
South Lakeland District Council,http://opendatacommunities.org/id/district-council/south-lakeland,30/09/2020,Human Resources,Central Services,http://opendatacommunities.org/def/concept/finance/sercop/objective/102,Choose Occupational Health,7365943,14/09/2020,112316,954.75,0,Pre-medical Form ,191800,Facilities Public Relations & Image
South Lakeland District Council,http://opendatacommunities.org/id/district-council/south-lakeland,30/09/2020,Business Support Community Services,Cultural Environmental Regulatory & Planning Services,http://opendatacommunities.org/def/concept/finance/sercop/objective/104,Masterstaff Limited,2777593,03/09/2020,111505,957.6,0,Agency staff 2020/21,261300,HR Recruitment & Assessment
South Lakeland District Council,http://opendatacommunities.org/id/district-council/south-lakeland,30/09/2020,Case Management Regulatory,Central Services,http://opendatacommunities.org/def/concept/finance/sercop/objective/102,The Oyster Partnership,5020374,09/09/2020,112221,960,0,Agency Environmental Health Officer,261300,HR Recruitment & Assessment
,http://opendatacommunities.org/id/district-council/south-lakeland,30/09/2020,Case Management People,Housing Services,http://opendatacommunities.org/def/concept/finance/sercop/objective/108,Cobble Country,,14/09/2020,112501,990,0,Rent in advance and deposit,250010,Housing Letting Agents
,http://opendatacommunities.org/id/district-council/south-lakeland,30/09/2020,Business Support Community Services,Cultural Environmental Regulatory & Planning Services,http://opendatacommunities.org/def/concept/finance/sercop/objective/104,KEEP BRITAIN TIDY,3496361,23/09/2020,112692,995,0,Essential Membership partnership,181600,Environment Street Cleansing
South Lakeland District Council,http://opendatacommunities.org/id/district-council/south-lakeland,30/09/2020,Case Management Account Mgmt,Housing Services,http://opendatacommunities.org/def/concept/finance/sercop/objective/108,GRANTS- MISCELLANEOUS,,02/09/2020,111640,1000,0,Womens Community Matters (Ulverston,201700,Financial Services Grants
South Lakeland District Council,http://opendatacommunities.org/id/district-council/south-lakeland,30/09/2020,Support Services,Central Services,http://opendatacommunities.org/def/concept/finance/sercop/objective/102,Ulverston Coronation Hall,,14/09/2020,112413,1000,0,Locality donation to fund tactile art,291300,Arts & Leisure Services Performing Arts
,http://opendatacommunities.org/id/district-council/south-lakeland,30/09/2020,Support Services,SLDC as Agent,,PS BUSINESS MATTERS,8147185,30/09/2020,112483,1000,0,Kendal Futures Programme Support,151900,Consultancy Management
,http://opendatacommunities.org/id/district-council/south-lakeland,30/09/2020,Support Services,Central Services,http://opendatacommunities.org/def/concept/finance/sercop/objective/102,LINDALE & NEWTON-IN-CARTMEL PC,,23/09/2020,112615,1000,0,Locality donation to fund Lindale,908000,Public Bodies Council support services
South Lakeland District Council,http://opendatacommunities.org/id/district-council/south-lakeland,30/09/2020,Case Management Account Mgmt,Cultural Environmental Regulatory & Planning Services,http://opendatacommunities.org/def/concept/finance/sercop/objective/104,PPL PRS Limited,10376001,03/09/2020,111538,1027.76,0,Parks performing rights licence fee for,202100,Financial Services Subscriptions
South Lakeland District Council,http://opendatacommunities.org/id/district-council/south-lakeland,30/09/2020,Locality,Central Services,http://opendatacommunities.org/def/concept/finance/sercop/objective/102,Aquila Training Services,5567402,16/09/2020,111564,1042.5,0,Fixed penalty notice training with Mike,261500,HR Training & Conferences
South Lakeland District Council,http://opendatacommunities.org/id/district-council/south-lakeland,30/09/2020,Human Resources,Central Services,http://opendatacommunities.org/def/concept/finance/sercop/objective/102,NORTH WEST EMPLOYERS,,14/09/2020,112426,1050,0,Personal Resiliance Training 3x,261500,HR Training & Conferences
South Lakeland District Council,http://opendatacommunities.org/id/district-council/south-lakeland,30/09/2020,Case Management People,Housing Services,http://opendatacommunities.org/def/concept/finance/sercop/objective/108,Jane Harris,,09/09/2020,112292,1055.95,0,Reimbursement of costs,250000,Housing
South Lakeland District Council,http://opendatacommunities.org/id/district-council/south-lakeland,30/09/2020,Business Support Community Services,Cultural Environmental Regulatory & Planning Services,http://opendatacommunities.org/def/concept/finance/sercop/objective/104,Masterstaff Limited,2777593,14/09/2020,112301,1065.6,0,Agency staff 2020/21,261300,HR Recruitment & Assessment
South Lakeland District Council,http://opendatacommunities.org/id/district-council/south-lakeland,30/09/2020,Business Support Community Services,Cultural Environmental Regulatory & Planning Services,http://opendatacommunities.org/def/concept/finance/sercop/objective/104,Masterstaff Limited,2777593,16/09/2020,112350,1065.6,0,Agency staff 2020/21,261300,HR Recruitment & Assessment
,http://opendatacommunities.org/id/district-council/south-lakeland,30/09/2020,Business Support Community Services,Cultural Environmental Regulatory & Planning Services,http://opendatacommunities.org/def/concept/finance/sercop/objective/104,Masterstaff Limited,2777593,28/09/2020,112778,1065.6,0,Agency staff 2020/21,261300,HR Recruitment & Assessment
,http://opendatacommunities.org/id/district-council/south-lakeland,30/09/2020,Business Support Community Services,Cultural Environmental Regulatory & Planning Services,http://opendatacommunities.org/def/concept/finance/sercop/objective/104,Masterstaff Limited,2777593,30/09/2020,112885,1065.6,0,Agency staff 2020/21,261300,HR Recruitment & Assessment
,http://opendatacommunities.org/id/district-council/south-lakeland,30/09/2020,Finance,Central Services,http://opendatacommunities.org/def/concept/finance/sercop/objective/102,BOTTOMLINE TECHNOLOGIES EUROPE LTD,3693514,30/09/2020,112887,1068.86,0,CSeries BACS Thin Client Server annual,271600,ICT Software Customised & Bespoke
South Lakeland District Council,http://opendatacommunities.org/id/district-council/south-lakeland,30/09/2020,Business Support Community Services,Cultural Environmental Regulatory & Planning Services,http://opendatacommunities.org/def/concept/finance/sercop/objective/104,FUCHS LUBRICANTS (UK) PLC,2412689,23/09/2020,112248,1070.28,0,Cartridges,381100,Vehicle Mgt Fuel
South Lakeland District Council,http://opendatacommunities.org/id/district-council/south-lakeland,30/09/2020,Case Management Account Mgmt,SLDC as Agent,,ROYAL MAIL GROUP PLC,,07/09/2020,111683,1080.73,0,2020-21 Postal Charges a/c 0198123013,301200,Mail Services� Postage
,http://opendatacommunities.org/id/district-council/south-lakeland,30/09/2020,Business Support Community Services,Cultural Environmental Regulatory & Planning Services,http://opendatacommunities.org/def/concept/finance/sercop/objective/104,CUMBRIA WASTE RECYCLING LTD,3162439,23/09/2020,112668,1092,0,Skip emptying at Ecclerigg & Ulverston,182012,Environment Waste Management Recycling
South Lakeland District Council,http://opendatacommunities.org/id/district-council/south-lakeland,30/09/2020,Development Implementation,Central Services,http://opendatacommunities.org/def/concept/finance/sercop/objective/102,LAMBERT SMITH HAMPTON GROUP,2521225,07/09/2020,111396,1100,0,SLDC Energy Efficiency Modifications,191700,Facilities Property Management
,http://opendatacommunities.org/id/district-council/south-lakeland,30/09/2020,Business Support Community Services,Cultural Environmental Regulatory & Planning Services,http://opendatacommunities.org/def/concept/finance/sercop/objective/104,ARCO LIMITED,133804,30/09/2020,112855,1116,0,Cleaning materials,141100,Clothing Protective
South Lakeland District Council,http://opendatacommunities.org/id/district-council/south-lakeland,30/09/2020,Business Support Community Services,Cultural Environmental Regulatory & Planning Services,http://opendatacommunities.org/def/concept/finance/sercop/objective/104,BRIAN ARMISTEAD LTD T/A SINKFALL RECYCLI,4133280,02/09/2020,111595,1128.75,0,Tipping charges - green waste,391110,Construction Buildings Construction
South Lakeland District Council,http://opendatacommunities.org/id/district-council/south-lakeland,30/09/2020,Support Services,SLDC as Agent,,ANTHONY COLLINS SOLICITORS,OC313432,07/09/2020,112239,1146,0,CCBL Cumbria Choice Based Lettings,281300,Legal Services Legal Opinion
,http://opendatacommunities.org/id/district-council/south-lakeland,30/09/2020,Business Support Community Services,Cultural Environmental Regulatory & Planning Services,http://opendatacommunities.org/def/concept/finance/sercop/objective/104,Masterstaff Limited,2777593,21/09/2020,112520,1159.2,0,Agency staff 2020/21,261300,HR Recruitment & Assessment
South Lakeland District Council,http://opendatacommunities.org/id/district-council/south-lakeland,30/09/2020,Case Management Account Mgmt,Highways & Transport Services,http://opendatacommunities.org/def/concept/finance/sercop/objective/107,CAPITA BUSINESS SERVICES LTD (NCR),,01/09/2020,111570,1184.68,0,2020-21 Internet Payment / bank charges,261500,HR Training & Conferences
South Lakeland District Council,http://opendatacommunities.org/id/district-council/south-lakeland,30/09/2020,Case Management,Housing Services,http://opendatacommunities.org/def/concept/finance/sercop/objective/108,Landlord,,14/09/2020,112441,1190,0,Monthly rent,202000,Financial Services Rents
South Lakeland District Council,http://opendatacommunities.org/id/district-council/south-lakeland,30/09/2020,Case Management People,Housing Services,http://opendatacommunities.org/def/concept/finance/sercop/objective/108,STEELES REMOVALS LTD,3082686,03/09/2020,111618,1200,0,Removal of goods into storage,191900,Facilities Removals
,http://opendatacommunities.org/id/district-council/south-lakeland,30/09/2020,Support Services,Other Items,,PS BUSINESS MATTERS,8147185,30/09/2020,112482,1200,0,Project Assistance for Reopening High,151900,Consultancy Management
,http://opendatacommunities.org/id/district-council/south-lakeland,30/09/2020,Case Management Account Mgmt,Central Services,http://opendatacommunities.org/def/concept/finance/sercop/objective/102,CFH Docmail Ltd,1716891,21/09/2020,112578,1261.21,0,Revenues Printing 2020-21 (Printing,300000,Mail Services
South Lakeland District Council,http://opendatacommunities.org/id/district-council/south-lakeland,30/09/2020,Support Services,Central Services,http://opendatacommunities.org/def/concept/finance/sercop/objective/102,Southall Associates Limited,5751804,14/09/2020,112241,1291.5,0,"Annual Licience for access to Audit,",202100,Financial Services Subscriptions
South Lakeland District Council,http://opendatacommunities.org/id/district-council/south-lakeland,30/09/2020,Environment and Housing,Housing Services,http://opendatacommunities.org/def/concept/finance/sercop/objective/108,James Andrews Recruitment Solutions,6834852,14/09/2020,112364,1317.89,0,Agency worker for Community-led Housing,261400,HR Temporary & Agency Staff
South Lakeland District Council,http://opendatacommunities.org/id/district-council/south-lakeland,30/09/2020,Case Management Regulatory,Central Services,http://opendatacommunities.org/def/concept/finance/sercop/objective/102,The Oyster Partnership,5020374,14/09/2020,112418,1342,0,Agency Environmental Health Officer,261300,HR Recruitment & Assessment
South Lakeland District Council,http://opendatacommunities.org/id/district-council/south-lakeland,30/09/2020,Business Support Community Services,SLDC as Agent,,Viewdeck Consulting Limited,,14/09/2020,112427,1342.5,0,Cumbria Choice Consultancy Work,150000,Consultancy
South Lakeland District Council,http://opendatacommunities.org/id/district-council/south-lakeland,30/09/2020,Case Management Account Mgmt,Cultural Environmental Regulatory & Planning Services,http://opendatacommunities.org/def/concept/finance/sercop/objective/104,Bergen Arbortech,,07/09/2020,111675,1347,0,Beech tree at Serpentine Woods Kendal,241210,Horticultural Tree Trimming
South Lakeland District Council,http://opendatacommunities.org/id/district-council/south-lakeland,30/09/2020,Business Support Community Services,Cultural Environmental Regulatory & Planning Services,http://opendatacommunities.org/def/concept/finance/sercop/objective/104,BRIAN ARMISTEAD LTD T/A SINKFALL RECYCLI,4133280,03/09/2020,111592,1383.74,0,Tipping charges - green waste,391110,Construction Buildings Construction
South Lakeland District Council,http://opendatacommunities.org/id/district-council/south-lakeland,30/09/2020,Case Management Regulatory,Central Services,http://opendatacommunities.org/def/concept/finance/sercop/objective/102,Carrington West,,03/09/2020,111532,1403.1,0,PLANNING CONTRACTORS,159999,Consultancy Not Elsewhere Classified
,http://opendatacommunities.org/id/district-council/south-lakeland,30/09/2020,Human Resources,Central Services,http://opendatacommunities.org/def/concept/finance/sercop/objective/102,PENNA PLC,1918150,28/09/2020,112746,1423.65,0,Advertising for Environmental Health,261400,HR Temporary & Agency Staff
,http://opendatacommunities.org/id/district-council/south-lakeland,30/09/2020,Westmorland Centre Parking Office,Highways & Transport Services,http://opendatacommunities.org/def/concept/finance/sercop/objective/107,Security Plus   Limited,,16/09/2020,112496,1436.59,0,Cash processing August 2020,209999,Financial Services Not Elsewhere Classif
,http://opendatacommunities.org/id/district-council/south-lakeland,30/09/2020,Business Support Community Services,Cultural Environmental Regulatory & Planning Services,http://opendatacommunities.org/def/concept/finance/sercop/objective/104,FAUN ZOELLER (UK) LTD,751804,23/09/2020,112672,1450,0,Parts & repairs,381400,Vehicle Mgt Maintenance
,http://opendatacommunities.org/id/district-council/south-lakeland,30/09/2020,Case Management People,Central Services,http://opendatacommunities.org/def/concept/finance/sercop/objective/102,MORGAN HUNT UK LIMITED,4349535,28/09/2020,112619,1463.7,0,Payment ,269999,HR Not Elsewhere Classified
South Lakeland District Council,http://opendatacommunities.org/id/district-council/south-lakeland,30/09/2020,Case Management Account Mgmt,SLDC as Agent,,ROYAL MAIL GROUP PLC,,09/09/2020,112229,1494.33,0,2020-21 Postal Charges a/c 0198123013,301200,Mail Services� Postage
South Lakeland District Council,http://opendatacommunities.org/id/district-council/south-lakeland,30/09/2020,Development Implementation,Cultural Environmental Regulatory & Planning Services,http://opendatacommunities.org/def/concept/finance/sercop/objective/104,Helen Moriarty,,28/09/2020,112357,1498.38,0,Project Management Officer for Bowness,151000,Consultancy Business
,http://opendatacommunities.org/id/district-council/south-lakeland,30/09/2020,Case Management People,Housing Services,http://opendatacommunities.org/def/concept/finance/sercop/objective/108,D Clark Properties,,21/09/2020,112574,1500,0,Accommodation,250000,Housing
South Lakeland District Council,http://opendatacommunities.org/id/district-council/south-lakeland,30/09/2020,Case Management Account Mgmt,SLDC as Agent,,ROYAL MAIL GROUP PLC,,14/09/2020,112398,1533.98,0,2020-21 Postal Charges a/c 0198123013,301200,Mail Services� Postage
South Lakeland District Council,http://opendatacommunities.org/id/district-council/south-lakeland,30/09/2020,Support Services,External Trading Accounts,,ENVIRONMENT AGENCY,,23/09/2020,112266,1580,0,Summerlands Septic Tanks Treat Sewage,202100,Financial Services Subscriptions
,http://opendatacommunities.org/id/district-council/south-lakeland,30/09/2020,Business Support Community Services,Cultural Environmental Regulatory & Planning Services,http://opendatacommunities.org/def/concept/finance/sercop/objective/104,PROBRUSH T/A NORTHERN MUNICIPAL SPARES L,,23/09/2020,112700,1587,0,Brushes 2019/20,381600,Vehicle Mgt Leasing
South Lakeland District Council,http://opendatacommunities.org/id/district-council/south-lakeland,30/09/2020,Case Management Account Mgmt,Central Services,http://opendatacommunities.org/def/concept/finance/sercop/objective/102,MERITEC LTD,3224622,07/09/2020,111682,1600,0,Remote Subsidy Processing 50 hrs. Wk,391200,Construction Engineering
South Lakeland District Council,http://opendatacommunities.org/id/district-council/south-lakeland,30/09/2020,Support Services,Cultural Environmental Regulatory & Planning Services,http://opendatacommunities.org/def/concept/finance/sercop/objective/104,Karen Bentley-Brown,,14/09/2020,112416,1600,0,Future Fixers Online Business Start Up,151000,Consultancy Business
South Lakeland District Council,http://opendatacommunities.org/id/district-council/south-lakeland,30/09/2020,Case Management Regulatory,Central Services,http://opendatacommunities.org/def/concept/finance/sercop/objective/102,The Oyster Partnership,5020374,03/09/2020,111588,1628,0,Agency Environmental Health Officer,261300,HR Recruitment & Assessment
South Lakeland District Council,http://opendatacommunities.org/id/district-council/south-lakeland,30/09/2020,Case Management Regulatory,Central Services,http://opendatacommunities.org/def/concept/finance/sercop/objective/102,The Oyster Partnership,5020374,09/09/2020,112223,1628,0,Agency Environmental Health Officer,261300,HR Recruitment & Assessment
,http://opendatacommunities.org/id/district-council/south-lakeland,30/09/2020,Case Management Regulatory,Central Services,http://opendatacommunities.org/def/concept/finance/sercop/objective/102,The Oyster Partnership,5020374,30/09/2020,112902,1628,0,Agency Environmental Health Officer,261300,HR Recruitment & Assessment
South Lakeland District Council,http://opendatacommunities.org/id/district-council/south-lakeland,30/09/2020,Environment and Housing,Housing Services,http://opendatacommunities.org/def/concept/finance/sercop/objective/108,James Andrews Recruitment Solutions,6834852,02/09/2020,111582,1632.61,0,Agency worker for Community-led Housing,261400,HR Temporary & Agency Staff
South Lakeland District Council,http://opendatacommunities.org/id/district-council/south-lakeland,30/09/2020,Environment and Housing,Housing Services,http://opendatacommunities.org/def/concept/finance/sercop/objective/108,James Andrews Recruitment Solutions,6834852,09/09/2020,112225,1632.61,0,Agency worker for Community-led Housing,261400,HR Temporary & Agency Staff
,http://opendatacommunities.org/id/district-council/south-lakeland,30/09/2020,Environment and Housing,Housing Services,http://opendatacommunities.org/def/concept/finance/sercop/objective/108,James Andrews Recruitment Solutions,6834852,30/09/2020,112835,1652.28,0,Agency worker for Community-led Housing,261400,HR Temporary & Agency Staff
,http://opendatacommunities.org/id/district-council/south-lakeland,30/09/2020,Case Management People,Housing Services,http://opendatacommunities.org/def/concept/finance/sercop/objective/108,Kendal Hostel Private Rented,,30/09/2020,112500,1680,0,Accommodation Kendal Hostel,250010,Housing Letting Agents
South Lakeland District Council,http://opendatacommunities.org/id/district-council/south-lakeland,30/09/2020,Business Support Community Services,Cultural Environmental Regulatory & Planning Services,http://opendatacommunities.org/def/concept/finance/sercop/objective/104,GLASDON UK LTD,2160576,07/09/2020,112245,1713.43,0,Glasdon Jubilee� General  Waste Bin in,109999,Building Not Elsewhere Classified
South Lakeland District Council,http://opendatacommunities.org/id/district-council/south-lakeland,30/09/2020,Case Management Account Mgmt,Cultural Environmental Regulatory & Planning Services,http://opendatacommunities.org/def/concept/finance/sercop/objective/104,CONTINENTAL LANDSCAPES LTD,2108452,07/09/2020,111565,1741.83,0,Parks Routine Maintenance from April,391310,Construction Open Spaces Construction
South Lakeland District Council,http://opendatacommunities.org/id/district-council/south-lakeland,30/09/2020,Support Services,SLDC as Agent,,ANTHONY COLLINS SOLICITORS,OC313432,07/09/2020,112240,1769,0,CCBL Cumbria Choice Based Lettings,281300,Legal Services Legal Opinion
South Lakeland District Council,http://opendatacommunities.org/id/district-council/south-lakeland,30/09/2020,Case Management Regulatory,Central Services,http://opendatacommunities.org/def/concept/finance/sercop/objective/102,Carrington West,,09/09/2020,112215,1795.5,0,Agency staff planning,159999,Consultancy Not Elsewhere Classified
South Lakeland District Council,http://opendatacommunities.org/id/district-council/south-lakeland,30/09/2020,Case Management Regulatory,Central Services,http://opendatacommunities.org/def/concept/finance/sercop/objective/102,Carrington West,,14/09/2020,112430,1795.5,0,Agency staff planning,159999,Consultancy Not Elsewhere Classified
,http://opendatacommunities.org/id/district-council/south-lakeland,30/09/2020,Case Management People,Central Services,http://opendatacommunities.org/def/concept/finance/sercop/objective/102,MORGAN HUNT UK LIMITED,4349535,30/09/2020,112738,1799.63,0,Payment ,269999,HR Not Elsewhere Classified
South Lakeland District Council,http://opendatacommunities.org/id/district-council/south-lakeland,30/09/2020,Support Services,Central Services,http://opendatacommunities.org/def/concept/finance/sercop/objective/102,7 Harrington Street Chambers,,09/09/2020,111197,1854.16,0,Ongoing prosecution work-ref advice,281300,Legal Services Legal Opinion
South Lakeland District Council,http://opendatacommunities.org/id/district-council/south-lakeland,30/09/2020,Support Services,Other Items,,Tactical Security,,14/09/2020,112360,1890,0,Provision of Security Services,192200,Facilities Security
,http://opendatacommunities.org/id/district-council/south-lakeland,30/09/2020,Human Resources,Central Services,http://opendatacommunities.org/def/concept/finance/sercop/objective/102,PENNA PLC,1918150,28/09/2020,112745,1920.67,0,Advertising for Environmental Health,261400,HR Temporary & Agency Staff
,http://opendatacommunities.org/id/district-council/south-lakeland,30/09/2020,Case Management People,Central Services,http://opendatacommunities.org/def/concept/finance/sercop/objective/102,MORGAN HUNT UK LIMITED,4349535,30/09/2020,112838,1943.6,0,Payment for Carol Halton,269999,HR Not Elsewhere Classified
South Lakeland District Council,http://opendatacommunities.org/id/district-council/south-lakeland,30/09/2020,Case Management Account Mgmt,SLDC as Agent,,ROYAL MAIL GROUP PLC,,09/09/2020,112228,1959.05,0,2020-21 Postal Charges a/c 0198123013,301200,Mail Services� Postage
,http://opendatacommunities.org/id/district-council/south-lakeland,30/09/2020,Business Support Community Services,Cultural Environmental Regulatory & Planning Services,http://opendatacommunities.org/def/concept/finance/sercop/objective/104,VOLVO GROUP UK LTD,2190944,21/09/2020,112540,1999.99,0,parts,381000,Vehicle Mgt Commercial
South Lakeland District Council,http://opendatacommunities.org/id/district-council/south-lakeland,30/09/2020,Case Management Account Mgmt,Cultural Environmental Regulatory & Planning Services,http://opendatacommunities.org/def/concept/finance/sercop/objective/104,CONTINENTAL LANDSCAPES LTD,2108452,07/09/2020,111565,2009.8,0,Parks Routine Maintenance from April,391310,Construction Open Spaces Construction
South Lakeland District Council,http://opendatacommunities.org/id/district-council/south-lakeland,30/09/2020,Business Support Community Services,Central Services,http://opendatacommunities.org/def/concept/finance/sercop/objective/102,Richard A Majewicz,,03/09/2020,111578,2025,0,Conservation advice,159999,Consultancy Not Elsewhere Classified
,http://opendatacommunities.org/id/district-council/south-lakeland,30/09/2020,Business Support Community Services,Cultural Environmental Regulatory & Planning Services,http://opendatacommunities.org/def/concept/finance/sercop/objective/104,BRIAN ARMISTEAD LTD T/A SINKFALL RECYCLI,4133280,21/09/2020,112536,2048.09,0,Tipping charges - green waste,391110,Construction Buildings Construction
South Lakeland District Council,http://opendatacommunities.org/id/district-council/south-lakeland,30/09/2020,Support Services,Housing Services,http://opendatacommunities.org/def/concept/finance/sercop/objective/108,LAMBERT SMITH HAMPTON GROUP,2521225,03/09/2020,111571,2065.8,0,Town View Fields Fire - Consultancy Fee,191700,Facilities Property Management
South Lakeland District Council,http://opendatacommunities.org/id/district-council/south-lakeland,30/09/2020,Case Management People,Central Services,http://opendatacommunities.org/def/concept/finance/sercop/objective/102,MORGAN HUNT UK LIMITED,4349535,09/09/2020,112214,2135.56,0,Payment for Carol Halton,269999,HR Not Elsewhere Classified
South Lakeland District Council,http://opendatacommunities.org/id/district-council/south-lakeland,30/09/2020,Case Management People,Central Services,http://opendatacommunities.org/def/concept/finance/sercop/objective/102,MORGAN HUNT UK LIMITED,4349535,03/09/2020,111579,2207.54,0,Payment for Carol Halton,269999,HR Not Elsewhere Classified
South Lakeland District Council,http://opendatacommunities.org/id/district-council/south-lakeland,30/09/2020,Case Management Account Mgmt,Cultural Environmental Regulatory & Planning Services,http://opendatacommunities.org/def/concept/finance/sercop/objective/104,CONTINENTAL LANDSCAPES LTD,2108452,07/09/2020,111567,2227.36,0,For disposal of waste to Kendal Fell,391310,Construction Open Spaces Construction
,http://opendatacommunities.org/id/district-council/south-lakeland,30/09/2020,Finance,Central Services,http://opendatacommunities.org/def/concept/finance/sercop/objective/102,BOTTOMLINE TECHNOLOGIES EUROPE LTD,3693514,30/09/2020,112889,2300.21,0,CSeries BACS Thin Client Server annual,271600,ICT Software Customised & Bespoke
South Lakeland District Council,http://opendatacommunities.org/id/district-council/south-lakeland,30/09/2020,Business Support Community Services,Cultural Environmental Regulatory & Planning Services,http://opendatacommunities.org/def/concept/finance/sercop/objective/104,Harry Park Tyres Ltd,8131208,07/09/2020,111672,2320,0,Tyres,381500,Vehicle Mgt Parts
South Lakeland District Council,http://opendatacommunities.org/id/district-council/south-lakeland,30/09/2020,Technical Team,Central Services,http://opendatacommunities.org/def/concept/finance/sercop/objective/102,Macdonald & Company Freelance Ltd,3882135,16/09/2020,112429,2335.5,0,PLANNING CONTRACT STAFF,261400,HR Temporary & Agency Staff
South Lakeland District Council,http://opendatacommunities.org/id/district-council/south-lakeland,30/09/2020,Business Support Community Services,Central Services,http://opendatacommunities.org/def/concept/finance/sercop/objective/102,CUMBRIA COUNTY COUNCIL,,14/09/2020,112232,2345,0,LAND CHARGE SEARCH ENQUIRIES HIGHWAYS,908000,Public Bodies Council support services
South Lakeland District Council,http://opendatacommunities.org/id/district-council/south-lakeland,30/09/2020,Business Support Community Services,Cultural Environmental Regulatory & Planning Services,http://opendatacommunities.org/def/concept/finance/sercop/objective/104,FUCHS LUBRICANTS (UK) PLC,2412689,03/09/2020,111503,2364.8,0,Cartridges,381100,Vehicle Mgt Fuel
South Lakeland District Council,http://opendatacommunities.org/id/district-council/south-lakeland,30/09/2020,Development Management,Central Services,http://opendatacommunities.org/def/concept/finance/sercop/objective/102,The Oyster Partnership,5020374,14/09/2020,112420,2450,0,Supply of Contract workers for Planning,261300,HR Recruitment & Assessment
,http://opendatacommunities.org/id/district-council/south-lakeland,30/09/2020,Business Support Community Services,Cultural Environmental Regulatory & Planning Services,http://opendatacommunities.org/def/concept/finance/sercop/objective/104,BRIAN ARMISTEAD LTD T/A SINKFALL RECYCLI,4133280,23/09/2020,112698,2546.46,0,Tipping charges - green waste,391110,Construction Buildings Construction
South Lakeland District Council,http://opendatacommunities.org/id/district-council/south-lakeland,30/09/2020,Business Support Community Services,Cultural Environmental Regulatory & Planning Services,http://opendatacommunities.org/def/concept/finance/sercop/objective/104,APSE,6735100,02/09/2020,111509,2567,0,APSE membership,202100,Financial Services Subscriptions
,http://opendatacommunities.org/id/district-council/south-lakeland,30/09/2020,Human Resources,Central Services,http://opendatacommunities.org/def/concept/finance/sercop/objective/102,PENNA PLC,1918150,28/09/2020,112746,2669.35,0,Advertising for Environmental Health,261400,HR Temporary & Agency Staff
South Lakeland District Council,http://opendatacommunities.org/id/district-council/south-lakeland,30/09/2020,Development Management,Central Services,http://opendatacommunities.org/def/concept/finance/sercop/objective/102,The Oyster Partnership,5020374,03/09/2020,111605,2671.9,0,Supply of Contract workers for Planning,261300,HR Recruitment & Assessment
South Lakeland District Council,http://opendatacommunities.org/id/district-council/south-lakeland,30/09/2020,Case Management Account Mgmt,Transport,http://opendatacommunities.org/def/concept/finance/sercop/objective/107,SC Signs T/A Signs Express Lancaster,,09/09/2020,112216,2742.77,0,Supply of Public Space Protection Order,102400,Building Signage
South Lakeland District Council,http://opendatacommunities.org/id/district-council/south-lakeland,30/09/2020,Business Support Community Services,Cultural Environmental Regulatory & Planning Services,http://opendatacommunities.org/def/concept/finance/sercop/objective/104,PENNINGTONS (KENDAL) LIMITED,434649,14/09/2020,112249,2750,0,Annual Charge for use of Link Road at,182013,Environment Waste Mgt Waste Collection
,http://opendatacommunities.org/id/district-council/south-lakeland,30/09/2020,Case Management People,Housing Services,http://opendatacommunities.org/def/concept/finance/sercop/objective/108,HOME GROUP LTD,IP22981R,16/09/2020,112490,2765.14,0,Monthly lease of HMO for TA,250000,Housing
South Lakeland District Council,http://opendatacommunities.org/id/district-council/south-lakeland,30/09/2020,Customer Services,Cultural Environmental Regulatory & Planning Services,http://opendatacommunities.org/def/concept/finance/sercop/objective/104,MILNTHORPE KENNELS & CATTERY,8932302,09/09/2020,112255,2791.67,0,Stray dog contract 2020/21 collection,181500,Environment Animal Services
South Lakeland District Council,http://opendatacommunities.org/id/district-council/south-lakeland,30/09/2020,Development Management,Central Services,http://opendatacommunities.org/def/concept/finance/sercop/objective/102,The Oyster Partnership,5020374,03/09/2020,111606,2887.5,0,Supply of Contract workers for Planning,261300,HR Recruitment & Assessment
South Lakeland District Council,http://opendatacommunities.org/id/district-council/south-lakeland,30/09/2020,Development Management,Central Services,http://opendatacommunities.org/def/concept/finance/sercop/objective/102,The Oyster Partnership,5020374,09/09/2020,112222,2910.6,0,Supply of Contract workers for Planning,261300,HR Recruitment & Assessment
,http://opendatacommunities.org/id/district-council/south-lakeland,30/09/2020,Human Resources,Central Services,http://opendatacommunities.org/def/concept/finance/sercop/objective/102,Learning Pool Ltd,,28/09/2020,112798,3000,0,Year 1 (07 September 2020 to 06,261500,HR Training & Conferences
South Lakeland District Council,http://opendatacommunities.org/id/district-council/south-lakeland,30/09/2020,Case Management Account Mgmt,Cultural Environmental Regulatory & Planning Services,http://opendatacommunities.org/def/concept/finance/sercop/objective/104,Coop FuneralCare Kendal,,09/09/2020,112256,3110,0,Sec 46 Public health burial ,121000,Cemetery & Crematorium Burial & Crem
,http://opendatacommunities.org/id/district-council/south-lakeland,30/09/2020,Development Management,Central Services,http://opendatacommunities.org/def/concept/finance/sercop/objective/102,The Oyster Partnership,5020374,30/09/2020,112903,3150,0,Supply of Contract workers for Planning,261300,HR Recruitment & Assessment
,http://opendatacommunities.org/id/district-council/south-lakeland,30/09/2020,Business Support Community Services,Cultural Environmental Regulatory & Planning Services,http://opendatacommunities.org/def/concept/finance/sercop/objective/104,TRAPEZE,,21/09/2020,112524,3370.08,0,Fleetmaster support 01/11/20 - 31/10/21,271600,ICT Software Customised & Bespoke
South Lakeland District Council,http://opendatacommunities.org/id/district-council/south-lakeland,30/09/2020,Business Support Community Services,Cultural Environmental Regulatory & Planning Services,http://opendatacommunities.org/def/concept/finance/sercop/objective/104,DENNIS EAGLE LTD,3794455,14/09/2020,111597,3520,0,Vehicle tax,381300,Vehicle Mgt Industrial
,http://opendatacommunities.org/id/district-council/south-lakeland,30/09/2020,Business Support Community Services,Cultural Environmental Regulatory & Planning Services,http://opendatacommunities.org/def/concept/finance/sercop/objective/104,BRIAN ARMISTEAD LTD T/A SINKFALL RECYCLI,4133280,21/09/2020,112538,3549.22,0,Tipping charges - green waste,391110,Construction Buildings Construction
South Lakeland District Council,http://opendatacommunities.org/id/district-council/south-lakeland,30/09/2020,Support Services,Other Items,,GRANTS- MISCELLANEOUS,,02/09/2020,111612,3653.11,0,Grant: Coronavirus additional support,201700,Financial Services Grants
South Lakeland District Council,http://opendatacommunities.org/id/district-council/south-lakeland,30/09/2020,Case Management Account Mgmt,Central Services,http://opendatacommunities.org/def/concept/finance/sercop/objective/102,CAPITA BUSINESS SERVICES LTD (NCR),,01/09/2020,111570,3799.75,0,2020-21 Internet Payment / bank charges,261500,HR Training & Conferences
,http://opendatacommunities.org/id/district-council/south-lakeland,30/09/2020,Case Management Account Mgmt,Culture and Related Serv,http://opendatacommunities.org/def/concept/finance/sercop/objective/104,KOMPAN Scotland Ltd,SC127228,23/09/2020,112782,3822,0,Ground works and safety surfacing at,331000,Sports Playground Equipment
,http://opendatacommunities.org/id/district-council/south-lakeland,30/09/2020,Human Resources,Central Services,http://opendatacommunities.org/def/concept/finance/sercop/objective/102,PENNA PLC,1918150,28/09/2020,112745,3841.33,0,Advertising for Environmental Health,261400,HR Temporary & Agency Staff
South Lakeland District Council,http://opendatacommunities.org/id/district-council/south-lakeland,30/09/2020,ICT Group,Central Services,http://opendatacommunities.org/def/concept/finance/sercop/objective/102,VODAFONE LIMITED,1471587,07/09/2020,111677,3937.27,0,Mobile Phone calls,271800,ICT Telecommunications Mobile
,http://opendatacommunities.org/id/district-council/south-lakeland,30/09/2020,Business Support Community Services,Cultural Environmental Regulatory & Planning Services,http://opendatacommunities.org/def/concept/finance/sercop/objective/104,Initial,1298292,21/09/2020,112576,3950.36,0,Clinical waste collections - 2020/21,131011,Cleaning & Janitorial Cleaning Materials
South Lakeland District Council,http://opendatacommunities.org/id/district-council/south-lakeland,30/09/2020,Support Services,Cultural Environmental Regulatory & Planning Services,http://opendatacommunities.org/def/concept/finance/sercop/objective/104,CUMBRIA COUNTY COUNCIL,,02/09/2020,111418,4000,0,Contribution to Business Survey,908000,Public Bodies Council support services
South Lakeland District Council,http://opendatacommunities.org/id/district-council/south-lakeland,30/09/2020,Case Management Account Mgmt,Cultural Environmental Regulatory & Planning Services,http://opendatacommunities.org/def/concept/finance/sercop/objective/104,CONTINENTAL LANDSCAPES LTD,2108452,07/09/2020,111566,4050.03,0,For gravedigging from April 2020 -,391310,Construction Open Spaces Construction
South Lakeland District Council,http://opendatacommunities.org/id/district-council/south-lakeland,30/09/2020,Business Support Community Services,Central Services,http://opendatacommunities.org/def/concept/finance/sercop/objective/102,CUMBRIA COUNTY COUNCIL,,14/09/2020,112231,4079,0,LAND CHARGE SEARCH ENQUIRIES HIGHWAYS,908000,Public Bodies Council support services
South Lakeland District Council,http://opendatacommunities.org/id/district-council/south-lakeland,30/09/2020,Business Support Community Services,Cultural Environmental Regulatory & Planning Services,http://opendatacommunities.org/def/concept/finance/sercop/objective/104,ALLSTAR BUSINESS SOLUTIONS LTD (NCR),2631112,01/09/2020,112217,4310.72,0,Fuel to 31/8,381600,Vehicle Mgt Leasing
South Lakeland District Council,http://opendatacommunities.org/id/district-council/south-lakeland,30/09/2020,Technical Team,Central Services,http://opendatacommunities.org/def/concept/finance/sercop/objective/102,Macdonald & Company Freelance Ltd,3882135,07/09/2020,111690,4432.5,0,PLANNING CONTRACT STAFF,261400,HR Temporary & Agency Staff
,http://opendatacommunities.org/id/district-council/south-lakeland,30/09/2020,Westmorland Centre Parking Office,Highways & Transport Services,http://opendatacommunities.org/def/concept/finance/sercop/objective/107,CAPITA BUSINESS SERVICES LTD (NCR),,01/09/2020,112509,5211.15,0,Credit card commision April 2020 -,261500,HR Training & Conferences
,http://opendatacommunities.org/id/district-council/south-lakeland,30/09/2020,Case Management Account Mgmt,Highways & Transport Services,http://opendatacommunities.org/def/concept/finance/sercop/objective/107,Orbility,,16/09/2020,112470,5419.74,0,Maintenance Agreement for equipment in,111200,Catering Food & Beverages
,http://opendatacommunities.org/id/district-council/south-lakeland,30/09/2020,Case Management Account Mgmt,Culture and Related Serv,http://opendatacommunities.org/def/concept/finance/sercop/objective/104,KOMPAN Scotland Ltd,SC127228,23/09/2020,112781,5424.5,0,For stone block edges for the path at,331000,Sports Playground Equipment
South Lakeland District Council,http://opendatacommunities.org/id/district-council/south-lakeland,30/09/2020,Customer Services,Cultural Environmental Regulatory & Planning Services,http://opendatacommunities.org/def/concept/finance/sercop/objective/104,RIGHT 2 WORK,,09/09/2020,111685,6285,0,Bulky waste collection scheme 2020/21,321010,Social Care Adult Advice & Counselling
South Lakeland District Council,http://opendatacommunities.org/id/district-council/south-lakeland,30/09/2020,Case Management Account Mgmt,Non-Service Payments,,Kendal BID Ltd,8986243,16/09/2020,112462,6376.29,0,Collection figures 'Levy Payments,201700,Financial Services Grants
South Lakeland District Council,http://opendatacommunities.org/id/district-council/south-lakeland,30/09/2020,Support Services,Central Services,http://opendatacommunities.org/def/concept/finance/sercop/objective/102,Pilio Ltd,7780333,14/09/2020,112463,6575,0,"Energy management licence, support and",151200,Consultancy Efficiency
,http://opendatacommunities.org/id/district-council/south-lakeland,30/09/2020,Case Management Account Mgmt,SLDC as Agent,,PAY BY PHONE (PAYPOINT),,16/09/2020,112545,6932.39,0,Fees payable for use of Pay-by-Phone at,351400,Street & Traffic Traffic Control
,http://opendatacommunities.org/id/district-council/south-lakeland,30/09/2020,Support Services,Central Services,http://opendatacommunities.org/def/concept/finance/sercop/objective/102,THOMSON REUTERS (PROFESSIONAL) UK LTD,1679046,30/09/2020,112910,6965.7,0,WESTLAW UK SERVICES,202100,Financial Services Subscriptions
South Lakeland District Council,http://opendatacommunities.org/id/district-council/south-lakeland,30/09/2020,Customer Services,Cultural Environmental Regulatory & Planning Services,http://opendatacommunities.org/def/concept/finance/sercop/objective/104,RIGHT 2 WORK,,09/09/2020,111044,7031,0,Bulky waste collection scheme 2020/21,321010,Social Care Adult Advice & Counselling
South Lakeland District Council,http://opendatacommunities.org/id/district-council/south-lakeland,30/09/2020,Case Management Account Mgmt,Non-Service Payments,,Kendal BID Ltd,8986243,03/09/2020,111664,8291.47,0,Bid Money Collected,201700,Financial Services Grants
South Lakeland District Council,http://opendatacommunities.org/id/district-council/south-lakeland,30/09/2020,Case Management Account Mgmt,Central Services,http://opendatacommunities.org/def/concept/finance/sercop/objective/102,MERITEC LTD,3224622,03/09/2020,111284,8880,0,For 3 agency staff,391200,Construction Engineering
South Lakeland District Council,http://opendatacommunities.org/id/district-council/south-lakeland,30/09/2020,Case Management People,SLDC as Agent,,Andy Gale Housing Consultancy,,16/09/2020,112224,9500,0,Cumbria Choice Policy Review,152100,Consultancy Strategic Planning
South Lakeland District Council,http://opendatacommunities.org/id/district-council/south-lakeland,30/09/2020,Policy & Partnerships,Central Services,http://opendatacommunities.org/def/concept/finance/sercop/objective/102,Bloom Procurement Services Ltd,,09/09/2020,112264,10000,0,Service Redesign - Information Service,151900,Consultancy Management
South Lakeland District Council,http://opendatacommunities.org/id/district-council/south-lakeland,30/09/2020,Case Management People,Housing,http://opendatacommunities.org/def/concept/finance/sercop/objective/108,Levens Community Project,,09/09/2020,112233,10442,0,Capacity Building Grant,250000,Housing
South Lakeland District Council,http://opendatacommunities.org/id/district-council/south-lakeland,30/09/2020,Case Management Account Mgmt,Cultural Environmental Regulatory & Planning Services,http://opendatacommunities.org/def/concept/finance/sercop/objective/104,CONTINENTAL LANDSCAPES LTD,2108452,07/09/2020,111565,10718.95,0,Parks Routine Maintenance from April,391310,Construction Open Spaces Construction
South Lakeland District Council,http://opendatacommunities.org/id/district-council/south-lakeland,30/09/2020,Development Implementation,Central Services,http://opendatacommunities.org/def/concept/finance/sercop/objective/102,Bloom Procurement Services Ltd,,16/09/2020,112263,10730,0,RIBA Stage 4 design consultancy fees,151900,Consultancy Management
,http://opendatacommunities.org/id/district-council/south-lakeland,30/09/2020,Business Support Community Services,Cultural Environmental Regulatory & Planning Services,http://opendatacommunities.org/def/concept/finance/sercop/objective/104,CUMBRIA WASTE RECYCLING LTD,3162439,30/09/2020,112848,11973.54,0,Empty recycling banks in 2020/21,182012,Environment Waste Management Recycling
South Lakeland District Council,http://opendatacommunities.org/id/district-council/south-lakeland,30/09/2020,Case Management Account Mgmt,Cultural Environmental Regulatory & Planning Services,http://opendatacommunities.org/def/concept/finance/sercop/objective/104,LAKE DISTRICT SUMMER MUSIC,1887957,03/09/2020,112204,12050,0,Strategic Cultural Partnership grant,291300,Arts & Leisure Services Performing Arts
South Lakeland District Council,http://opendatacommunities.org/id/district-council/south-lakeland,30/09/2020,Case Management Account Mgmt,Central Services,http://opendatacommunities.org/def/concept/finance/sercop/objective/102,MERITEC LTD,3224622,14/09/2020,112423,12654,0,Remote Specialist Revenues processingt,391200,Construction Engineering
,http://opendatacommunities.org/id/district-council/south-lakeland,30/09/2020,Case Management People,Housing Services,http://opendatacommunities.org/def/concept/finance/sercop/objective/108,SOUTH LAKES HOUSING,IP031419,30/09/2020,112839,12874.51,0,Payment for leased properties used as TA,191700,Facilities Property Management
South Lakeland District Council,http://opendatacommunities.org/id/district-council/south-lakeland,30/09/2020,Business Support Community Services,Cultural Environmental Regulatory & Planning Services,http://opendatacommunities.org/def/concept/finance/sercop/objective/104,ALLSTAR BUSINESS SOLUTIONS LTD (NCR),2631112,01/09/2020,112217,13663.1,0,Fuel to 31/8,381600,Vehicle Mgt Leasing
South Lakeland District Council,http://opendatacommunities.org/id/district-council/south-lakeland,30/09/2020,Case Management Account Mgmt,Cultural Environmental Regulatory & Planning Services,http://opendatacommunities.org/def/concept/finance/sercop/objective/104,THE WORDSWORTH TRUST,3442086,03/09/2020,112205,15000,0,Strategic Cultural Partnership grant,201700,Financial Services Grants
South Lakeland District Council,http://opendatacommunities.org/id/district-council/south-lakeland,30/09/2020,Development Implementation,Culture and Related Serv,http://opendatacommunities.org/def/concept/finance/sercop/objective/104,Bloom Procurement Services Ltd,,16/09/2020,112263,18429.71,0,RIBA Stage 4 design consultancy fees,151900,Consultancy Management
South Lakeland District Council,http://opendatacommunities.org/id/district-council/south-lakeland,30/09/2020,Case Management Account Mgmt,Central Services,http://opendatacommunities.org/def/concept/finance/sercop/objective/102,MERITEC LTD,3224622,14/09/2020,112422,19536,0,Remote Benefits Manager support 444,391200,Construction Engineering
,http://opendatacommunities.org/id/district-council/south-lakeland,30/09/2020,Case Management Account Mgmt,Non-Service Payments,,Ulverston BID Company Ltd,9761005,16/09/2020,112565,22209.27,0,Collection figures,201700,Financial Services Grants
South Lakeland District Council,http://opendatacommunities.org/id/district-council/south-lakeland,30/09/2020,Business Support Community Services,Central Services,http://opendatacommunities.org/def/concept/finance/sercop/objective/102,Weir & Carmichael Ltd,551299,07/09/2020,111670,32205.6,0,Kerbside Recycling Bags to be delivered,182011,Environment Waste Management Consumables
South Lakeland District Council,http://opendatacommunities.org/id/district-council/south-lakeland,30/09/2020,Support Services,Culture and Related Serv,http://opendatacommunities.org/def/concept/finance/sercop/objective/104,Electricity North West (Invoices 99..),2366949,14/09/2020,111609,32666.74,0,"Braithwaite Fold Caravan Site, Glebe",371000,Utilities Electricity
,http://opendatacommunities.org/id/district-council/south-lakeland,30/09/2020,Support Services,Housing,http://opendatacommunities.org/def/concept/finance/sercop/objective/108,Howe Projects Ltd,,16/09/2020,112484,49675.22,0,Refurbishment of Hampsfell Depot,109999,Building Not Elsewhere Classified
South Lakeland District Council,http://opendatacommunities.org/id/district-council/south-lakeland,30/09/2020,Case Management Account Mgmt,Cultural Environmental Regulatory & Planning Services,http://opendatacommunities.org/def/concept/finance/sercop/objective/104,CONTINENTAL LANDSCAPES LTD,2108452,07/09/2020,111565,51048.56,0,Parks Routine Maintenance from April,391310,Construction Open Spaces Construction
,http://opendatacommunities.org/id/district-council/south-lakeland,30/09/2020,Case Management Account Mgmt,Cultural Environmental Regulatory & Planning Services,http://opendatacommunities.org/def/concept/finance/sercop/objective/104,BREWERY ARTS CENTRE,,23/09/2020,112779,65500,0,Strategic cultural partner grant,291000,Arts & Leisure Services Events
South Lakeland District Council,http://opendatacommunities.org/id/district-council/south-lakeland,30/09/2020,Support Services,Central Services,http://opendatacommunities.org/def/concept/finance/sercop/objective/102,LAMBERT SMITH HAMPTON GROUP,2521225,16/09/2020,112355,81543.5,0,Property Service Contract (Apr - Sept),191700,Facilities Property Management
South Lakeland District Council,http://opendatacommunities.org/id/district-council/south-lakeland,30/09/2020,Support Services,Environment Regulatory,,SSCL (Environment Agency),,02/09/2020,111615,88764.5,0,North Kendal Industrial Area Flood Risk,180000,Environmental Services
,http://opendatacommunities.org/id/district-council/south-lakeland,30/09/2020,Case Management Account Mgmt,Culture and Related Serv,http://opendatacommunities.org/def/concept/finance/sercop/objective/104,KOMPAN Scotland Ltd,SC127228,23/09/2020,112780,116586.63,0,Installation and supply of play,331000,Sports Playground Equipment
